{"text_format":"1","workbook":"xlsx","n_sheets":5,"sheets":["Notes","Summary","OP STP","Orgs","BS"],"not_rendered":{"charts":0,"images":0,"macros":1,"external_links":0,"defined_names":4,"comments":0,"pivot_tables":0},"unopened":[],"bounds":{"document_bytes":16777216,"sheet_cells":100000,"rows_first":2000,"rows_last":500,"rows_between":2000,"halvings":0,"cell_chars":16384,"cell_head_chars":4096},"cells_cut":0,"cells_raw":0,"read":"whole","date_system":"1900"}

{"sheet":"Notes","index":0,"n_rows":2,"n_cols":10,"rows_kept":2,"cut":false,"hidden":false,"merged":[]}
[]
["Outpatients Friends and Family Test (FFT) Data - November 2021",null,null,null,null,null,null,null,null,"  Show data for:"]

{"sheet":"Summary","index":1,"n_rows":10,"n_cols":10,"rows_kept":10,"cut":false,"hidden":false,"merged":[[5,1,6,1],[5,4,5,5],[5,6,5,7],[5,8,5,9]]}
[]
[]
[]
[]
[]
[null,"FFT","Number of organisations submitting","Total responses to date","Responses",null,"Percentage Positive",null,"Percentage Negative"]
[null,null,"2021-11-01","2021-11-01","2021-11-01","2021-10-27","2021-11-01","2021-10-27","2021-11-01","2021-10-27"]
[null,"Total",223,22497025,343033,320888,0.93124276673089756,0.92658186033756329,3.3719787892126998E-2,3.564795193338486E-2]
[null,"NHS",136,21137347,324491,305882,0.92902114388380574,0.9243401050078135,3.4869996394353002E-2,3.6791965529190993E-2]
[null,"IS",87,1359678,18542,15006,0.97012188544925038,0.97227775556444085,1.3590766907561213E-2,1.2328401972544315E-2]

{"sheet":"OP STP","index":2,"n_rows":55,"n_cols":12,"rows_kept":55,"cut":false,"hidden":false,"merged":[[7,5,8,5],[7,6,7,11],[4,1,5,1],[4,4,5,4],[7,0,8,0],[7,1,8,1],[7,2,8,2],[7,3,8,3],[7,4,8,4]]}
[]
[]
[]
[]
[]
[]
[]
["STP Code","STP Name","Total Responses","Total Eligible","Percentage Positive","Percentage Negative","Breakdown of Responses"]
[null,null,null,null,null,null,"Very Good","Good","Neither Good nor Poor","Poor","Very Poor","Don't Know"]
[null,"England (including Independent Sector Providers)",343033,4560095,0.93124276673089756,3.3719787892126998E-2,273347,46100,9313,5281,6286,2706]
[null,"England (excluding Independent Sector Providers)",324491,4380417,0.92902114388380574,3.4869996394353002E-2,257657,43802,9035,5163,6152,2682]
[null,"Selection (excluding suppressed data)",{"$f":"SUBTOTAL(9, C13:C56)","v":343033},{"$f":"SUBTOTAL(9, D13:D56)","v":4560095},{"$f":"IFERROR((G12+H12)/C12, \"-\")","v":0.93124276673089756},{"$f":"IFERROR((J12+K12)/C12, \"-\")","v":3.3719787892126998E-2},{"$f":"SUBTOTAL(9, G13:G56)","v":273347},46100,9313,5281,6286,2706]
["QE1","Healthier Lancashire and South Cumbria",5858,137355,0.93103448275862066,3.0385797200409695E-2,4644,810,176,104,74,50]
["QF7","South Yorkshire and Bassetlaw STP",8157,199734,0.92497241632953286,3.9107515017776144E-2,6570,975,229,147,172,64]
["QGH","Herefordshire and Worcestershire STP",4724,43154,0.92696867061812027,3.6833192209991532E-2,3697,682,146,76,98,25]
["QH8","Mid and South Essex STP",6928,27987,0.92681870669745958,3.5363741339491918E-2,5414,1007,210,117,128,52]
["QHG","Bedfordshire, Luton and Milton Keynes STP",6538,46922,0.92811257265218716,2.7837259100642397E-2,4746,1322,238,97,85,50]
["QHL","Birmingham and Solihull STP",430,108757,0.95348837209302328,2.7906976744186046E-2,365,45,6,3,9,2]
["QHM","Cumbria and North East STP",4653,214648,0.95164410058027082,2.1276595744680851E-2,3805,623,116,54,45,10]
["QJ2","Joined Up Care Derbyshire STP",2181,73142,0.92847317744154056,3.3012379642365884E-2,1695,330,76,38,34,8]
["QJG","Suffolk and North East Essex STP",11954,60416,0.93299314037142378,2.6434666220511962E-2,9169,1984,373,163,153,112]
["QJK","Devon STP",537,94706,0.97392923649906893,9.3109869646182501E-3,457,66,8,1,4,1]
["QJM","Lincolnshire STP",3326,41027,0.91641611545399881,4.1190619362597714E-2,2535,513,104,66,71,37]
["QK1","Leicester, Leicestershire and Rutland STP",10266,63193,0.94506136762127413,3.009935710111046E-2,8514,1188,217,126,183,38]
["QKK","Our Healthier South East London STP",14281,199333,0.90784959036482038,5.0696729920873887E-2,10365,2600,546,347,377,46]
["QKS","Kent and Medway STP",19525,112651,0.88906530089628677,6.1766965428937261E-2,14719,2640,809,541,665,151]
["QM7","Hertfordshire and West Essex STP",1841,75354,0.95763172189027701,1.9011406844106463E-2,1441,322,36,9,26,7]
["QMF","East London Health & Care Partnership (STP)",11396,176471,0.86135486135486139,7.1955071955071961E-2,7918,1898,442,319,501,318]
["QMJ","North London Partners in Health & Care (STP)",24154,251852,0.92448455742320113,3.1009356628301732E-2,18926,3404,609,327,422,466]
["QMM","Norfolk and Waveney Health & Care Partnership (STP)",6142,78462,0.95571475089547375,2.4910452621295993E-2,5279,591,111,72,81,8]
["QNC","Staffordshire & Stoke on Trent STP",3497,48113,0.94423791821561343,2.4878467257649414E-2,2940,362,68,48,39,40]
["QNQ","Frimley Health & Care (STP)",1713,41313,0.9480443666082895,2.5685931115002919E-2,1312,312,42,21,23,3]
["QNX","Sussex Health and Care Partnership STP",4575,67923,0.96240437158469949,1.6612021857923497E-2,3945,458,75,42,34,21]
["QOC","Shropshire and Telford and Wrekin STP",2293,33462,0.97688617531617972,1.1774967291757523E-2,2016,224,24,15,12,2]
["QOP","Greater Manchester Health & Social Care Partnership",17480,324630,0.92660183066361557,3.7070938215102975E-2,13986,2211,504,291,357,131]
["QOQ","Humber, Coast and Vale STP",5040,125208,0.93630952380952381,3.1944444444444442E-2,3936,783,144,82,79,16]
["QOX","Bath and North East Somerset, Swindon and Wiltshire STP",865,66307,0.97341040462427741,1.2716763005780347E-2,783,59,8,4,7,4]
["QPM","Northamptonshire STP",2828,57502,0.93741159830268739,2.6166902404526168E-2,2217,434,89,26,48,14]
["QR1","Gloucestershire STP",6756,45709,0.93946121965660156,3.0047365304914149E-2,5355,992,191,99,104,15]
["QRL","Hampshire and the Isle of Wight STP",7028,141140,0.93625498007968122,2.9880478087649404E-2,5755,825,205,104,106,33]
["QRV","North West London Health & Care Partnership (STP)",8894,159574,0.93726107488194288,3.1144591859680684E-2,7146,1190,226,120,157,55]
["QSL","Somerset STP",1177,11194,0.96941376380628719,2.2090059473237042E-2,1060,81,10,12,14,0]
["QT1","Nottingham and Nottinghamshire Health and Care STP",6581,73482,0.96201185230208175,2.0969457529250873E-2,5617,714,96,64,74,16]
["QT6","Cornwall and the Isles of Scilly Health & Social Care Partnership (STP)",1452,33945,0.95867768595041325,1.5840220385674932E-2,1242,150,34,11,12,3]
["QU9","Buckinghamshire, Oxfordshire and Berkshire West STP",11932,130367,0.9353838417700302,2.9249078109285953E-2,9695,1466,333,192,157,89]
["QUA","The Black Country and West Birmingham STP",9967,142034,0.88742851409651846,5.4078458914417579E-2,7245,1600,395,225,314,188]
["QUE","Cambridgeshire and Peterborough STP",11674,95056,0.95802638341613844,1.9701901661812574E-2,10041,1143,221,99,131,39]
["QUY","Bristol, North Somerset and South Gloucestershire STP",6989,74468,0.94362569752468162,2.8330233223637143E-2,5645,950,141,93,105,55]
["QVV","Dorset STP",3355,13568,0.93561847988077496,2.5931445603576752E-2,2652,487,74,48,39,55]
["QWE","South West London Health & Care Partnership (STP)",12508,133591,0.92093060441317554,4.3652062679884876E-2,9592,1927,376,236,310,67]
["QWO","West Yorkshire and Harrogate Health & Care Partnership (STP)",9529,190745,0.94102214293210196,3.0328470983314093E-2,7758,1209,222,132,157,51]
["QWU","Coventry and Warwickshire STP",5083,74094,0.93232343104465865,3.0887271296478457E-2,3949,790,125,62,95,62]
["QXU","Surrey Heartlands Health & Care Partnership (STP)",3557,79219,0.92746696654484118,4.0764689344953614E-2,2802,497,89,65,80,24]
["QYG","Cheshire and Merseyside STP",36827,212609,0.94080430119206016,2.8104379938631983E-2,30709,3938,891,465,570,254]
["IS1","Independent Sector Providers",18542,179678,0.97012188544925038,1.3590766907561213E-2,15690,2298,278,118,134,24]

{"sheet":"Orgs","index":3,"n_rows":235,"n_cols":21,"rows_kept":235,"cut":false,"hidden":false,"merged":[[7,15,8,15],[7,16,8,16],[7,17,8,17],[7,18,8,18],[4,1,5,2],[6,13,6,20],[7,0,8,0],[7,1,8,1],[7,2,8,2],[7,3,8,3],[7,4,8,4],[7,5,8,5],[7,6,8,6],[7,7,7,12],[7,19,8,19],[7,20,8,20],[7,13,8,13],[7,14,8,14]]}
[]
[]
[]
[]
[null,null,null,null,null,null,null,"  "]
[null,null,null,null,null,null,null,"  "]
[null,null,null,null,null,null,null,null,null,null,null,null,null,"Response Mode"]
["STP Code","Org Code","Org Name","Total Responses","Total Eligible","Percentage Positive","Percentage Negative","Breakdown of Responses",null,null,null,null,null,"Mode SMS","Mode Electronic At Appointment","Mode Electronic After Appointment","Mode Paper At Appointment","Mode Paper After Appointment","Mode Telephone","Mode Online","Mode Other"]
[null,null,null,null,null,null,null,"Very Good","Good","Neither Good nor Poor","Poor","Very Poor","Don't Know"]
[null,null,"England (including Independent Sector Providers)",343033,4560095,0.93124276673089756,3.3719787892126998E-2,273347,46100,9313,5281,6286,2706,218645,9055,1334,38498,6244,41077,25744,2436]
[null,null,"England (excluding Independent Sector Providers)",324491,4380417,0.92902114388380574,3.4869996394353002E-2,257657,43802,9035,5163,6152,2682,217944,6855,6,30576,5104,41077,20493,2436]
[null,null,"Selection (excluding suppressed data)",{"$f":"SUBTOTAL(9, D13:D10000)","v":343033},{"$f":"SUBTOTAL(9, E13:E10000)","v":4560095},{"$f":"IFERROR((H12+I12)/D12, \"-\")","v":0.93121653018805772},{"$f":"IFERROR((K12+L12)/D12, \"-\")","v":3.3719787892126998E-2},{"$f":"SUBTOTAL(9, H13:H10000)","v":273338},{"$f":"SUBTOTAL(9, I13:I10000)","v":46100},9313,5281,6286,2706,218645,9055,1334,38496,6241,41077,25740,{"$f":"SUBTOTAL(9, U13:U9998)","v":2436}]
["QE1","RXL","BLACKPOOL TEACHING HOSPITALS NHS FOUNDATION TRUST",870,30454,0.98965517241379308,5.7471264367816091E-3,789,72,4,3,2,0,0,0,0,854,0,0,16,0]
["QE1","RXR","EAST LANCASHIRE HOSPITALS NHS TRUST",1323,40919,0.90476190476190477,3.779289493575208E-2,1025,172,48,33,17,28,1111,0,0,146,0,0,66,0]
["QE1","RXN","LANCASHIRE TEACHING HOSPITALS NHS FOUNDATION TRUST",2089,42505,0.90713259932982293,4.547630445189086E-2,1555,340,85,56,39,14,1788,0,0,3,0,285,13,0]
["QE1","RTX","UNIVERSITY HOSPITALS OF MORECAMBE BAY NHS FOUNDATION TRUST",1576,23477,0.95241116751269039,1.7766497461928935E-2,1275,226,39,12,16,8,1175,0,0,0,0,401,0,0]
["QF7","RFF","BARNSLEY HOSPITAL NHS FOUNDATION TRUST",240,29727,0.95,2.9166666666666667E-2,193,35,3,2,5,2,0,240,0,0,0,0,0,0]
["QF7","RP5","DONCASTER AND BASSETLAW TEACHING HOSPITALS NHS FOUNDATION TRUST",365,41287,0.98082191780821915,1.0958904109589041E-2,317,41,3,1,3,0,0,0,0,362,0,0,3,0]
["QF7","RCU","SHEFFIELD CHILDREN'S NHS FOUNDATION TRUST",1784,13538,0.86715246636771304,7.3430493273542605E-2,1342,205,78,55,76,28,0,0,0,0,5,1760,19,0]
["QF7","RHQ","SHEFFIELD TEACHING HOSPITALS NHS FOUNDATION TRUST",5554,93123,0.93662225423118473,3.1508822470291679E-2,4523,679,143,88,87,34,4634,0,0,0,0,811,109,0]
["QF7","RFR","THE ROTHERHAM NHS FOUNDATION TRUST",214,22059,0.98130841121495327,9.3457943925233638E-3,195,15,2,1,1,0,0,0,0,208,0,0,6,0]
["QGH","RWP","WORCESTERSHIRE ACUTE HOSPITALS NHS TRUST",4724,28946,0.92696867061812027,3.6833192209991532E-2,3697,682,146,76,98,25,4724,0,0,0,0,0,0,0]
["QGH","RLQ","WYE VALLEY NHS TRUST",0,14208,"NA","NA",0,0,0,0,0,0,0,0,0,0,0,0,0,0]
["QH8","RAJ","MID AND SOUTH ESSEX NHS FOUNDATION TRUST",6928,27987,0.92681870669745958,3.5363741339491918E-2,5414,1007,210,117,128,52,5150,0,0,0,0,1404,17,357]
["QHG","RC9","BEDFORDSHIRE HOSPITALS NHS FOUNDATION TRUST",971,29118,0.93820803295571575,2.8836251287332648E-2,660,251,29,10,18,3,0,505,0,30,0,0,436,0]
["QHG","RD8","MILTON KEYNES UNIVERSITY HOSPITAL NHS FOUNDATION TRUST",5567,17804,0.9263517154661397,2.766301419076702E-2,4086,1071,209,87,67,47,5434,0,0,97,0,0,36,0]
["QHL","RRK","UNIVERSITY HOSPITALS BIRMINGHAM NHS FOUNDATION TRUST",430,108757,0.95348837209302328,2.7906976744186046E-2,365,45,6,3,9,2,0,0,0,0,430,0,0,0]
["QHM","RXP","COUNTY DURHAM AND DARLINGTON NHS FOUNDATION TRUST",0,30650,"NA","NA",0,0,0,0,0,0,0,0,0,0,0,0,0,0]
["QHM","RR7","GATESHEAD HEALTH NHS FOUNDATION TRUST",625,12216,0.92959999999999998,3.04E-2,519,62,21,12,7,4,620,0,0,5,0,0,0,0]
["QHM","RNN","NORTH CUMBRIA INTEGRATED CARE NHS FOUNDATION TRUST",292,400,1,0,268,24,0,0,0,0,1,0,0,291,0,0,0,0]
["QHM","RVW","NORTH TEES AND HARTLEPOOL NHS FOUNDATION TRUST",672,9852,0.92559523809523814,2.976190476190476E-2,529,93,28,11,9,2,644,0,0,28,0,0,0,0]
["QHM","RTF","NORTHUMBRIA HEALTHCARE NHS FOUNDATION TRUST",901,32614,0.94894561598224192,2.5527192008879023E-2,707,148,21,14,9,2,638,0,0,0,263,0,0,0]
["QHM","RTR","SOUTH TEES HOSPITALS NHS FOUNDATION TRUST",528,41641,0.95265151515151514,2.6515151515151516E-2,446,57,11,7,7,0,0,0,0,0,0,0,0,528]
["QHM","R0B","SOUTH TYNESIDE AND SUNDERLAND NHS FOUNDATION TRUST",216,"NA",0.96296296296296291,2.3148148148148147E-2,199,9,3,2,3,0,0,0,0,166,0,0,50,0]
["QHM","RTD","THE NEWCASTLE UPON TYNE HOSPITALS NHS FOUNDATION TRUST",1419,87275,0.96335447498238191,1.2684989429175475E-2,1137,230,32,8,10,2,0,0,0,1349,0,0,70,0]
["QJ2","RFS","CHESTERFIELD ROYAL HOSPITAL NHS FOUNDATION TRUST",1343,24039,0.91883842144452721,3.4996276991809384E-2,1008,226,54,23,24,8,1081,12,0,214,0,0,36,0]
["QJ2","RTG","UNIVERSITY HOSPITALS OF DERBY AND BURTON NHS FOUNDATION TRUST",838,49103,0.94391408114558473,2.9832935560859187E-2,687,104,22,15,10,0,578,0,0,43,0,0,217,0]
["QJG","RDE","EAST SUFFOLK AND NORTH ESSEX NHS FOUNDATION TRUST",11363,37301,0.93109214115990491,2.7281527765554869E-2,8701,1879,365,159,151,108,4647,0,0,53,0,6114,549,0]
["QJG","RGR","WEST SUFFOLK NHS FOUNDATION TRUST",591,23115,0.96954314720812185,1.015228426395939E-2,468,105,8,4,2,4,0,0,0,487,0,0,104,0]
["QJK","RBZ","NORTHERN DEVON HEALTHCARE NHS TRUST",272,10569,0.9595588235294118,1.8382352941176471E-2,221,40,5,1,4,1,0,0,0,210,0,0,62,0]
["QJK","RH8","ROYAL DEVON AND EXETER NHS FOUNDATION TRUST",43,28467,1,0,37,6,0,0,0,0,0,0,0,43,0,0,0,0]
["QJK","RA9","TORBAY AND SOUTH DEVON NHS FOUNDATION TRUST",81,27551,0.98765432098765427,0,74,6,1,0,0,0,0,0,0,81,0,0,0,0]
["QJK","RK9","UNIVERSITY HOSPITALS PLYMOUTH NHS TRUST",141,28119,0.98581560283687941,0,125,14,2,0,0,0,0,6,0,134,0,0,1,0]
["QJM","RWD","UNITED LINCOLNSHIRE HOSPITALS NHS TRUST",3326,41027,0.91641611545399881,4.1190619362597714E-2,2535,513,104,66,71,37,1474,0,0,0,0,1659,193,0]
["QK1","RWE","UNIVERSITY HOSPITALS OF LEICESTER NHS TRUST",10266,63193,0.94506136762127413,3.009935710111046E-2,8514,1188,217,126,183,38,8569,570,0,1101,0,0,26,0]
["QKK","RJ1","GUY'S AND ST THOMAS' NHS FOUNDATION TRUST",3443,77764,0.92274179494626773,4.5018878884693581E-2,2609,568,107,64,91,4,2330,52,0,533,0,0,528,0]
["QKK","RJZ","KING'S COLLEGE HOSPITAL NHS FOUNDATION TRUST",6860,75491,0.89344023323615163,5.9475218658892132E-2,4846,1283,292,200,208,31,6681,106,0,0,2,0,71,0]
["QKK","RJ2","LEWISHAM AND GREENWICH NHS TRUST",3978,46078,0.91980894922071388,4.047259929612871E-2,2910,749,147,83,78,11,2921,0,0,0,831,0,226,0]
["QKS","RN7","DARTFORD AND GRAVESHAM NHS TRUST",442,15829,0.96153846153846156,1.8099547511312219E-2,365,60,8,6,2,1,0,338,0,21,0,0,83,0]
["QKS","RVV","EAST KENT HOSPITALS UNIVERSITY NHS FOUNDATION TRUST",9501,36069,0.93305967792863909,3.4838438059151669E-2,7636,1229,305,175,156,0,9501,0,0,0,0,0,0,0]
["QKS","RWF","MAIDSTONE AND TUNBRIDGE WELLS NHS TRUST",7215,36262,0.82702702702702702,0.10200970200970201,5015,952,387,303,433,125,0,0,0,243,0,6580,392,0]
["QKS","RPA","MEDWAY NHS FOUNDATION TRUST",2367,24491,0.88804393747359522,5.5344317701732149E-2,1703,399,109,57,74,25,1860,0,0,0,0,507,0,0]
["QM7","RWH","EAST AND NORTH HERTFORDSHIRE NHS TRUST",606,31801,0.95049504950495045,1.4851485148514851E-2,455,121,15,2,7,6,0,18,0,533,0,44,11,0]
["QM7","RQW","THE PRINCESS ALEXANDRA HOSPITAL NHS TRUST",831,19035,0.94945848375451258,2.8880866425992781E-2,625,164,17,7,17,1,0,0,0,0,0,0,0,831]
["QM7","RWG","WEST HERTFORDSHIRE HOSPITALS NHS TRUST",404,24518,0.98514851485148514,4.9504950495049506E-3,361,37,4,0,2,0,0,404,0,0,0,0,0,0]
["QMF","RF4","BARKING, HAVERING AND REDBRIDGE UNIVERSITY HOSPITALS NHS TRUST",669,38451,0.9282511210762332,4.1853512705530643E-2,553,68,2,2,26,18,0,0,0,657,0,0,12,0]
["QMF","R1H","BARTS HEALTH NHS TRUST",10495,110639,0.85507384468794667,7.4797522629823726E-2,7188,1786,436,317,468,300,9109,0,0,1364,0,0,22,0]
["QMF","RQX","HOMERTON UNIVERSITY HOSPITAL NHS FOUNDATION TRUST",232,27381,0.95258620689655171,3.017241379310345E-2,177,44,4,0,7,0,0,74,0,64,0,0,94,0]
["QMJ","RP4","GREAT ORMOND STREET HOSPITAL FOR CHILDREN NHS FOUNDATION TRUST",611,15975,0.9492635024549918,3.1096563011456628E-2,517,63,8,13,6,4,0,0,0,571,0,0,40,0]
["QMJ","RP6","MOORFIELDS EYE HOSPITAL NHS FOUNDATION TRUST",15714,41996,0.93063510245640835,2.3100420007636503E-2,12419,2205,356,169,194,371,15714,0,0,0,0,0,0,0]
["QMJ","RAP","NORTH MIDDLESEX UNIVERSITY HOSPITAL NHS TRUST",1141,29118,0.90271691498685369,6.3102541630148987E-2,779,251,36,24,48,3,1141,0,0,0,0,0,0,0]
["QMJ","RAL","ROYAL FREE LONDON NHS FOUNDATION TRUST",475,77510,0.8147368421052632,0.10736842105263159,319,68,17,16,35,20,0,468,0,0,0,0,7,0]
["QMJ","RRV","UNIVERSITY COLLEGE LONDON HOSPITALS NHS FOUNDATION TRUST",6159,69108,0.91914271797369707,3.929209287221952E-2,4852,809,190,104,138,66,4539,0,0,0,0,1620,0,0]
["QMJ","RKE","WHITTINGTON HEALTH NHS TRUST",54,18145,0.88888888888888884,3.7037037037037035E-2,40,8,2,1,1,2,0,3,0,51,0,0,0,0]
["QMM","RGP","JAMES PAGET UNIVERSITY HOSPITALS NHS FOUNDATION TRUST",2059,17651,0.98882952889752307,3.885381253035454E-3,1906,130,12,3,5,3,0,0,0,2059,0,0,0,0]
["QMM","RM1","NORFOLK AND NORWICH UNIVERSITY HOSPITALS NHS FOUNDATION TRUST",2710,40887,0.93468634686346863,3.7269372693726939E-2,2206,327,72,50,51,4,1,0,0,345,0,0,2364,0]
["QMM","RCX","THE QUEEN ELIZABETH HOSPITAL, KING'S LYNN, NHS FOUNDATION TRUST",1373,19924,0.94756008739985431,3.2046613255644577E-2,1167,134,27,19,25,1,0,0,0,509,0,0,864,0]
["QNC","RRE","MIDLANDS PARTNERSHIP NHS FOUNDATION TRUST",12,2115,1,0,11,1,0,0,0,0,0,0,0,0,0,0,12,0]
["QNC","RJE","UNIVERSITY HOSPITALS OF NORTH MIDLANDS NHS TRUST",3485,45998,0.94404591104734581,2.4964131994261118E-2,2929,361,68,48,39,40,2936,122,0,422,0,0,5,0]
["QNQ","RDU","FRIMLEY HEALTH NHS FOUNDATION TRUST",1713,41313,0.9480443666082895,2.5685931115002919E-2,1312,312,42,21,23,3,625,1,0,1087,0,0,0,0]
["QNX","RXC","EAST SUSSEX HEALTHCARE NHS TRUST",687,24612,0.99272197962154296,4.3668122270742356E-3,661,21,1,2,1,1,0,19,0,668,0,0,0,0]
["QNX","RPC","QUEEN VICTORIA HOSPITAL NHS FOUNDATION TRUST",1555,15001,0.95369774919614148,1.3504823151125401E-2,1278,205,42,15,6,9,453,0,0,155,0,947,0,0]
["QNX","RYR","UNIVERSITY HOSPITALS SUSSEX NHS FOUNDATION TRUST",2333,28310,0.9592798971281612,2.2288898414059153E-2,2006,232,32,25,27,11,1189,3,0,901,0,206,34,0]
["QOC","RL1","THE ROBERT JONES AND AGNES HUNT ORTHOPAEDIC HOSPITAL NHS FOUNDATION TRUST",1239,6671,0.97578692493946728,1.2106537530266344E-2,1092,117,15,9,6,0,1238,0,1,0,0,0,0,0]
["QOC","RXW","THE SHREWSBURY AND TELFORD HOSPITAL NHS TRUST",1054,26791,0.9781783681214421,1.1385199240986717E-2,924,107,9,6,6,2,0,0,0,1051,0,0,3,0]
["QOP","RMC","BOLTON NHS FOUNDATION TRUST",2592,20678,0.91435185185185186,4.5138888888888888E-2,2081,289,84,45,72,21,2471,0,0,116,0,0,5,0]
["QOP","R0A","MANCHESTER UNIVERSITY NHS FOUNDATION TRUST",7719,109713,0.93483611866822125,3.3683119575074492E-2,6149,1067,198,112,148,45,2789,1129,0,1999,0,778,1024,0]
["QOP","RM3","NORTHERN CARE ALLIANCE NHS FOUNDATION TRUST",738,45542,0.9322493224932249,3.5230352303523033E-2,605,83,20,10,16,4,736,0,0,0,0,2,0,0]
["QOP","RW6","PENNINE ACUTE HOSPITALS NHS TRUST",808,53632,0.90346534653465349,5.3217821782178217E-2,611,119,27,21,22,8,800,0,0,0,0,8,0,0]
["QOP","RWJ","STOCKPORT NHS FOUNDATION TRUST",916,23554,0.92248908296943233,3.8209606986899562E-2,702,143,26,11,24,10,668,0,0,10,0,136,0,102]
["QOP","RMP","TAMESIDE AND GLOSSOP INTEGRATED CARE NHS FOUNDATION TRUST",1620,14683,0.88703703703703707,6.6666666666666666E-2,1258,179,70,54,54,5,0,9,0,0,0,0,1611,0]
["QOP","RBV","THE CHRISTIE NHS FOUNDATION TRUST",2172,29631,0.94475138121546964,1.5653775322283611E-2,1818,234,54,26,8,32,2172,0,0,0,0,0,0,0]
["QOP","RRF","WRIGHTINGTON, WIGAN AND LEIGH NHS FOUNDATION TRUST",915,27197,0.93879781420765029,2.7322404371584699E-2,762,97,25,12,13,6,665,0,0,10,0,240,0,0]
["QOQ","RCD","HARROGATE AND DISTRICT NHS FOUNDATION TRUST",2711,15172,0.93544817410549608,2.5451862781261526E-2,2072,464,92,40,29,14,0,0,0,0,0,2711,0,0]
["QOQ","RWA","HULL UNIVERSITY TEACHING HOSPITALS NHS TRUST",126,49363,0.99206349206349209,0,123,2,0,0,0,1,0,0,0,125,0,0,1,0]
["QOQ","RJL","NORTHERN LINCOLNSHIRE AND GOOLE NHS FOUNDATION TRUST",17,29908,0.41176470588235292,0.58823529411764708,7,0,0,0,10,0,0,16,0,0,0,0,1,0]
["QOQ","RCB","YORK AND SCARBOROUGH TEACHING HOSPITALS NHS FOUNDATION TRUST",2186,30765,0.93824336688014642,3.7511436413540711E-2,1734,317,52,42,40,1,2004,0,0,182,0,0,0,0]
["QOX","RN3","GREAT WESTERN HOSPITALS NHS FOUNDATION TRUST",455,21113,0.96483516483516485,1.098901098901099E-2,408,31,7,1,4,4,0,1,0,436,0,0,18,0]
["QOX","RD1","ROYAL UNITED HOSPITALS BATH NHS FOUNDATION TRUST",191,31733,0.97905759162303663,2.0942408376963352E-2,171,16,0,2,2,0,0,0,0,180,0,0,11,0]
["QOX","RNZ","SALISBURY NHS FOUNDATION TRUST",219,13461,0.98630136986301364,9.1324200913242004E-3,204,12,1,1,1,0,0,0,0,195,0,0,24,0]
["QPM","RNQ","KETTERING GENERAL HOSPITAL NHS FOUNDATION TRUST",582,23674,0.92096219931271472,2.5773195876288658E-2,409,127,30,2,13,1,0,0,0,0,0,0,582,0]
["QPM","RNS","NORTHAMPTON GENERAL HOSPITAL NHS TRUST",2246,33828,0.94167408726625113,2.626892252894034E-2,1808,307,59,24,35,13,1263,1,0,0,110,388,484,0]
["QR1","RTE","GLOUCESTERSHIRE HOSPITALS NHS FOUNDATION TRUST",6756,45709,0.93946121965660156,3.0047365304914149E-2,5355,992,191,99,104,15,6267,0,0,0,0,484,5,0]
["QRL","RN5","HAMPSHIRE HOSPITALS NHS FOUNDATION TRUST",1634,31742,0.94186046511627908,1.9583843329253364E-2,1339,200,46,20,12,17,444,0,0,801,0,348,41,0]
["QRL","R1F","ISLE OF WIGHT NHS TRUST",422,11546,0.99526066350710896,2.3696682464454978E-3,381,39,1,0,1,0,0,0,0,422,0,0,0,0]
["QRL","RHU","PORTSMOUTH HOSPITALS UNIVERSITY NATIONAL HEALTH SERVICE TRUST",4509,47392,0.9252605899312486,3.8145930361499221E-2,3657,515,152,83,89,13,4509,0,0,0,0,0,0,0]
["QRL","RHM","UNIVERSITY HOSPITAL SOUTHAMPTON NHS FOUNDATION TRUST",463,50460,0.96976241900647953,1.079913606911447E-2,378,71,6,1,4,3,0,0,0,0,217,0,246,0]
["QRV","RYJ","IMPERIAL COLLEGE HEALTHCARE NHS TRUST",1759,77893,0.92154633314383172,3.0130756111426946E-2,1385,236,41,20,33,44,986,465,0,308,0,0,0,0]
["QRV","R1K","LONDON NORTH WEST UNIVERSITY HEALTHCARE NHS TRUST",1687,39878,0.99229401304090104,4.1493775933609959E-3,1627,47,6,5,2,0,0,0,0,0,1673,0,14,0]
["QRV","RAN","ROYAL NATIONAL ORTHOPAEDIC HOSPITAL NHS TRUST",1206,3309,0.94859038142620233,2.3217247097844111E-2,1006,138,33,12,16,1,0,468,0,0,0,0,738,0]
["QRV","RAS","THE HILLINGDON HOSPITALS NHS FOUNDATION TRUST",3585,21219,0.9107391910739191,4.9093444909344489E-2,2564,701,137,74,102,7,0,0,5,0,703,0,2877,0]
["QRV","RPY","THE ROYAL MARSDEN NHS FOUNDATION TRUST",657,17275,0.96194824961948244,1.9786910197869101E-2,564,68,9,9,4,3,0,0,0,0,0,0,657,0]
["QSL","RH5","SOMERSET NHS FOUNDATION TRUST",203,641,0.96551724137931039,3.4482758620689655E-2,180,16,0,2,5,0,0,0,0,0,136,0,67,0]
["QSL","RA4","YEOVIL DISTRICT HOSPITAL NHS FOUNDATION TRUST",974,10553,0.97022587268993843,1.9507186858316223E-2,880,65,10,10,9,0,0,900,0,53,21,0,0,0]
["QT1","RX1","NOTTINGHAM UNIVERSITY HOSPITALS NHS TRUST",1852,44108,0.96976241900647953,1.8898488120950324E-2,1605,191,15,13,22,6,0,100,0,1726,0,0,26,0]
["QT1","RK5","SHERWOOD FOREST HOSPITALS NHS FOUNDATION TRUST",4729,29374,0.95897652780714737,2.1780503277648553E-2,4012,523,81,51,52,10,4416,15,0,297,0,0,1,0]
["QT6","REF","ROYAL CORNWALL HOSPITALS NHS TRUST",1452,33945,0.95867768595041325,1.5840220385674932E-2,1242,150,34,11,12,3,271,253,0,48,0,0,880,0]
["QU9","RXQ","BUCKINGHAMSHIRE HEALTHCARE NHS TRUST",4576,24627,0.92154720279720281,3.3435314685314688E-2,3496,721,162,83,70,44,3714,0,0,0,0,862,0,0]
["QU9","RTH","OXFORD UNIVERSITY HOSPITALS NHS FOUNDATION TRUST",5969,62596,0.93164684201708825,3.2668788741832801E-2,4889,672,168,108,87,45,5195,0,0,53,0,0,721,0]
["QU9","RHW","ROYAL BERKSHIRE NHS FOUNDATION TRUST",1387,43144,0.99711607786589762,7.2098053352559477E-4,1310,73,3,1,0,0,0,0,0,1386,0,0,1,0]
["QUA","RXK","SANDWELL AND WEST BIRMINGHAM HOSPITALS NHS TRUST",4896,44473,0.88031045751633985,6.7197712418300651E-2,3466,844,201,130,199,56,4173,0,0,0,0,723,0,0]
["QUA","RNA","THE DUDLEY GROUP NHS FOUNDATION TRUST",899,32251,0.79644048943270296,5.3392658509454953E-2,613,103,33,19,29,102,747,0,0,0,133,0,19,0]
["QUA","RL4","THE ROYAL WOLVERHAMPTON NHS TRUST",2087,48262,0.92812649736463826,3.3061811212266409E-2,1591,346,71,39,30,10,897,0,0,0,0,1189,1,0]
["QUA","RBK","WALSALL HEALTHCARE NHS TRUST",2085,17048,0.90263788968824943,4.4604316546762592E-2,1575,307,90,37,56,20,1682,0,0,0,0,403,0,0]
["QUE","RGT","CAMBRIDGE UNIVERSITY HOSPITALS NHS FOUNDATION TRUST",9399,44388,0.95520800085115443,2.2449196723055644E-2,8094,884,186,91,120,24,9357,0,0,35,0,0,7,0]
["QUE","RGN","NORTH WEST ANGLIA NHS FOUNDATION TRUST",1419,43360,0.97040169133192389,4.9330514446793514E-3,1185,192,21,4,3,14,0,0,0,1389,0,0,30,0]
["QUE","RGM","ROYAL PAPWORTH HOSPITAL NHS FOUNDATION TRUST",856,7308,0.96845794392523366,1.4018691588785047E-2,762,67,14,4,8,1,0,0,0,0,0,856,0,0]
["QUY","RVJ","NORTH BRISTOL NHS TRUST",3885,29480,0.94208494208494209,2.9601029601029602E-2,3149,511,86,53,62,24,2317,0,0,0,0,1565,3,0]
["QUY","RA7","UNIVERSITY HOSPITALS BRISTOL AND WESTON NHS FOUNDATION TRUST",3104,44988,0.94555412371134018,2.6739690721649483E-2,2496,439,55,40,43,31,2728,0,0,208,168,0,0,0]
["QVV","RBD","DORSET COUNTY HOSPITAL NHS FOUNDATION TRUST",1925,13568,0.93818181818181823,2.4415584415584415E-2,1520,286,42,25,22,30,1909,0,0,0,0,16,0,0]
["QVV","R0D","UNIVERSITY HOSPITALS DORSET NHS FOUNDATION TRUST",1430,"NA",0.93216783216783217,2.7972027972027972E-2,1132,201,32,23,17,25,1353,0,0,0,0,0,77,0]
["QWE","RJ6","CROYDON HEALTH SERVICES NHS TRUST",4043,29462,0.92431362849369281,4.2047984170170666E-2,3192,545,108,67,103,28,4043,0,0,0,0,0,0,0]
["QWE","RVR","EPSOM AND ST HELIER UNIVERSITY HOSPITALS NHS TRUST",2217,26135,0.93008570139828595,3.2025259359494816E-2,1811,251,66,31,40,18,1386,23,0,405,0,316,87,0]
["QWE","RAX","KINGSTON HOSPITAL NHS FOUNDATION TRUST",3731,23593,0.91423210935406052,5.3336906995443578E-2,2776,635,102,92,107,19,3271,13,0,0,0,443,4,0]
["QWE","RJ7","ST GEORGE'S UNIVERSITY HOSPITALS NHS FOUNDATION TRUST",2517,54401,0.91736193881605088,4.2113627334127927E-2,1813,496,100,46,60,2,0,147,0,190,0,0,2180,0]
["QWO","RCF","AIREDALE NHS FOUNDATION TRUST",1289,12503,0.93405740884406518,3.335919317300233E-2,1042,162,38,30,13,4,1254,0,0,0,0,0,35,0]
["QWO","RAE","BRADFORD TEACHING HOSPITALS NHS FOUNDATION TRUST",1353,27867,0.93569844789356982,3.7694013303769404E-2,1116,150,27,18,33,9,1353,0,0,0,0,0,0,0]
["QWO","RWY","CALDERDALE AND HUDDERSFIELD NHS FOUNDATION TRUST",2716,28861,0.92452135493372611,3.755522827687776E-2,2094,417,84,46,56,19,2638,0,0,0,0,0,78,0]
["QWO","RR8","LEEDS TEACHING HOSPITALS NHS TRUST",2329,83212,0.93559467582653499,3.1773293258909402E-2,1866,313,57,28,46,19,1101,231,0,0,214,677,106,0]
["QWO","RXF","MID YORKSHIRE HOSPITALS NHS TRUST",1842,38302,0.98099891422366992,1.0314875135722041E-2,1640,167,16,10,9,0,20,0,0,1785,0,0,37,0]
["QWU","RLT","GEORGE ELIOT HOSPITAL NHS TRUST",2816,16415,0.93998579545454541,2.2727272727272728E-2,2136,511,64,32,32,41,2774,0,0,0,0,42,0,0]
["QWU","RJC","SOUTH WARWICKSHIRE NHS FOUNDATION TRUST",593,15621,0.95278246205733563,3.2040472175379427E-2,531,34,2,4,15,7,0,0,0,562,0,0,31,0]
["QWU","RKB","UNIVERSITY HOSPITALS COVENTRY AND WARWICKSHIRE NHS TRUST",1674,42058,0.91218637992831542,4.4205495818399047E-2,1282,245,59,26,48,14,1476,0,0,0,198,0,0,0]
["QXU","RTK","ASHFORD AND ST PETER'S HOSPITALS NHS FOUNDATION TRUST",1220,33764,0.89590163934426226,6.2295081967213117E-2,891,202,32,29,47,19,813,0,0,0,0,0,407,0]
["QXU","RA2","ROYAL SURREY COUNTY HOSPITAL NHS FOUNDATION TRUST",1846,22866,0.9420368364030336,3.0335861321776816E-2,1513,226,47,29,27,4,1807,0,0,23,0,16,0,0]
["QXU","RTP","SURREY AND SUSSEX HEALTHCARE NHS TRUST",491,22589,0.95112016293279023,2.6476578411405296E-2,398,69,10,7,6,1,101,0,0,249,0,18,123,0]
["QYG","RBS","ALDER HEY CHILDREN'S NHS FOUNDATION TRUST",966,14548,0.94202898550724634,3.3126293995859216E-2,815,95,23,18,14,1,616,143,0,0,0,0,207,0]
["QYG","RJN","EAST CHESHIRE NHS TRUST",2118,9606,0.95845136921624174,1.6525023607176583E-2,1817,213,43,17,18,10,1449,0,0,0,0,669,0,0]
["QYG","RBQ","LIVERPOOL HEART AND CHEST HOSPITAL NHS FOUNDATION TRUST",0,4186,"NA","NA",0,0,0,0,0,0,0,0,0,0,0,0,0,0]
["QYG","REM","LIVERPOOL UNIVERSITY HOSPITALS NHS FOUNDATION TRUST",11665,22860,0.93913416202314615,2.9489927132447493E-2,9711,1244,281,144,200,85,9982,0,0,0,0,1683,0,0]
["QYG","REP","LIVERPOOL WOMEN'S NHS FOUNDATION TRUST",616,10791,0.92045454545454541,3.7337662337662336E-2,494,73,16,14,9,10,0,0,0,0,0,0,0,616]
["QYG","RBT","MID CHESHIRE HOSPITALS NHS FOUNDATION TRUST",2759,19971,0.93693367162015218,2.573396158028271E-2,2197,388,81,33,38,22,2116,0,0,2,0,641,0,0]
["QYG","RVY","SOUTHPORT AND ORMSKIRK HOSPITAL NHS TRUST",2583,16710,0.948509485094851,2.8261711188540456E-2,2161,289,53,36,37,7,2138,0,0,0,0,443,2,0]
["QYG","RBN","ST HELENS AND KNOWSLEY TEACHING HOSPITALS NHS TRUST",6013,31668,0.9404623316148345,2.8272077166140028E-2,5105,550,148,71,99,40,5086,0,0,88,0,777,62,0]
["QYG","REN","THE CLATTERBRIDGE CANCER CENTRE NHS FOUNDATION TRUST",2202,21976,0.96821071752951859,1.3623978201634877E-2,1973,159,32,16,14,8,2200,0,0,0,0,0,0,2]
["QYG","RET","THE WALTON CENTRE NHS FOUNDATION TRUST",161,9230,0.85093167701863359,9.3167701863354033E-2,112,25,5,1,14,4,0,0,0,0,0,0,161,0]
["QYG","RWW","WARRINGTON AND HALTON TEACHING HOSPITALS NHS FOUNDATION TRUST",3335,24822,0.92803598200899551,3.3883058470764615E-2,2655,440,95,52,61,32,1824,0,0,154,0,1353,4,0]
["QYG","RBL","WIRRAL UNIVERSITY TEACHING HOSPITAL NHS FOUNDATION TRUST",4409,26241,0.93694715354955771,2.9258335223406668E-2,3669,462,114,63,66,35,3457,0,0,0,0,952,0,0]
["IS1","NYW17","ASPEN HEALTHCARE - MIDLAND EYE",43,267,1,0,40,3,0,0,0,0,0,0,0,43,0,0,0,0]
["IS1","NWF01","BENENDEN HOSPITAL",12,"NA",1,0,8,4,0,0,0,0,0,0,0,0,0,0,12,0]
["IS1","NT402","BMI - BATH CLINIC",63,599,1,0,61,2,0,0,0,0,0,0,0,63,0,0,0,0]
["IS1","NT405","BMI - BISHOPS WOOD",103,841,1,0,98,5,0,0,0,0,0,0,0,103,0,0,0,0]
["IS1","NT409","BMI - CHELSFIELD PARK HOSPITAL",0,748,"NA","NA",0,0,0,0,0,0,0,0,0,0,0,0,0,0]
["IS1","NT417","BMI - GORING HALL HOSPITAL",32,1339,1,0,32,0,0,0,0,0,0,0,0,32,0,0,0,0]
["IS1","NT416","BMI - HENDON HOSPITAL",75,1241,1,0,70,5,0,0,0,0,0,0,0,75,0,0,0,0]
["IS1","NT433","BMI - SARUM ROAD HOSPITAL",34,373,1,0,34,0,0,0,0,0,0,0,0,34,0,0,0,0]
["IS1","NT436","BMI - SHIRLEY OAKS HOSPITAL",90,1849,1,0,85,5,0,0,0,0,0,0,0,90,0,0,0,0]
["IS1","NT401","BMI - THE ALEXANDRA HOSPITAL",25,2894,1,0,25,0,0,0,0,0,0,0,0,25,0,0,0,0]
["IS1","NT403","BMI - THE BEARDWOOD HOSPITAL",0,2371,"NA","NA",0,0,0,0,0,0,0,0,0,0,0,0,0,0]
["IS1","NT404","BMI - THE BEAUMONT HOSPITAL",288,2599,0.99305555555555558,0,260,26,2,0,0,0,0,0,0,288,0,0,0,0]
["IS1","NT406","BMI - THE BLACKHEATH HOSPITAL",0,1079,"NA","NA",0,0,0,0,0,0,0,0,0,0,0,0,0,0]
["IS1","NT408","BMI - THE CHAUCER HOSPITAL",125,844,1,0,125,0,0,0,0,0,0,0,0,125,0,0,0,0]
["IS1","NT410","BMI - THE CHILTERN HOSPITAL",7,501,1,0,7,0,0,0,0,0,0,0,0,7,0,0,0,0]
["IS1","NT411","BMI - THE CLEMENTINE CHURCHILL HOSPITAL",135,1945,1,0,125,10,0,0,0,0,0,0,0,135,0,0,0,0]
["IS1","NT412","BMI - THE DROITWICH SPA HOSPITAL",212,1544,1,0,191,21,0,0,0,0,0,0,0,212,0,0,0,0]
["IS1","NT418","BMI - THE HAMPSHIRE CLINIC",0,1289,"NA","NA",0,0,0,0,0,0,0,0,0,0,0,0,0,0]
["IS1","NT419","BMI - THE HARBOUR HOSPITAL",20,160,1,0,20,0,0,0,0,0,0,0,0,20,0,0,0,0]
["IS1","NT420","BMI - THE HIGHFIELD HOSPITAL",15,1332,1,0,15,0,0,0,0,0,0,0,0,15,0,0,0,0]
["IS1","NT421","BMI - THE KINGS OAK HOSPITAL",148,988,1,0,138,10,0,0,0,0,0,0,0,148,0,0,0,0]
["IS1","NT422","BMI - THE LONDON INDEPENDENT HOSPITAL",418,2814,0.96411483253588515,2.6315789473684209E-2,350,53,4,2,9,0,0,0,0,418,0,0,0,0]
["IS1","NT423","BMI - THE MANOR HOSPITAL",0,486,"NA","NA",0,0,0,0,0,0,0,0,0,0,0,0,0,0]
["IS1","NT424","BMI - THE MERIDEN HOSPITAL",0,1731,"NA","NA",0,0,0,0,0,0,0,0,0,0,0,0,0,0]
["IS1","NT427","BMI - THE PARK HOSPITAL",223,1044,1,0,213,10,0,0,0,0,0,0,0,223,0,0,0,0]
["IS1","NT428","BMI - THE PRINCESS MARGARET HOSPITAL",10,463,1,0,10,0,0,0,0,0,0,0,0,10,0,0,0,0]
["IS1","NT429","BMI - THE PRIORY HOSPITAL",0,997,"NA","NA",0,0,0,0,0,0,0,0,0,0,0,0,0,0]
["IS1","NT430","BMI - THE RIDGEWAY HOSPITAL",0,1028,"NA","NA",0,0,0,0,0,0,0,0,0,0,0,0,0,0]
["IS1","NT431","BMI - THE RUNNYMEDE HOSPITAL",25,157,1,0,25,0,0,0,0,0,0,0,0,25,0,0,0,0]
["IS1","NT434","BMI - THE SAXON CLINIC",36,520,1,0,31,5,0,0,0,0,0,0,0,36,0,0,0,0]
["IS1","NT435","BMI - THE SHELBURNE HOSPITAL",0,77,"NA","NA",0,0,0,0,0,0,0,0,0,0,0,0,0,0]
["IS1","NT437","BMI - THE SLOANE HOSPITAL",258,495,0.94186046511627908,3.875968992248062E-2,208,35,5,5,5,0,0,0,0,258,0,0,0,0]
["IS1","NT443","BMI - THE WINTERBOURNE HOSPITAL",0,478,"NA","NA",0,0,0,0,0,0,0,0,0,0,0,0,0,0]
["IS1","NT440","BMI - THORNBURY HOSPITAL",1068,615,0.9691011235955056,1.1235955056179775E-2,843,192,19,0,12,2,0,0,0,1068,0,0,0,0]
["IS1","NT441","BMI - THREE SHIRES HOSPITAL",38,1982,1,0,38,0,0,0,0,0,0,0,0,38,0,0,0,0]
["IS1","NT455","BMI MOUNT ALVERNIA HOSPITAL",271,1448,1,0,246,25,0,0,0,0,0,0,0,271,0,0,0,0]
["IS1","NT490","BMI SOUTHEND PRIVATE HOSPITAL",725,433,0.96551724137931039,1.3793103448275862E-2,600,100,15,5,5,0,0,0,0,725,0,0,0,0]
["IS1","NT446","BMI ST EDMUNDS HOSPITAL",0,370,"NA","NA",0,0,0,0,0,0,0,0,0,0,0,0,0,0]
["IS1","NT451","BMI THE CAVELL HOSPITAL",419,934,1,0,371,48,0,0,0,0,0,0,0,419,0,0,0,0]
["IS1","NT447","BMI THE DUCHY HOSPITAL",158,478,1,0,147,11,0,0,0,0,0,0,0,158,0,0,0,0]
["IS1","NT445","BMI THE EDGBASTON HOSPITAL",32,1529,1,0,32,0,0,0,0,0,0,0,0,32,0,0,0,0]
["IS1","NT448","BMI THE HUDDERSFIELD HOSPITAL",0,1620,"NA","NA",0,0,0,0,0,0,0,0,0,0,0,0,0,0]
["IS1","NT449","BMI THE LANCASTER HOSPITAL",170,541,1,0,165,5,0,0,0,0,0,0,0,170,0,0,0,0]
["IS1","NT450","BMI THE LINCOLN HOSPITAL",412,732,0.98300970873786409,0,377,28,5,0,0,2,0,0,0,412,0,0,0,0]
["IS1","NT457","BMI WOODLANDS HOSPITAL",1666,2499,0.9891956782713085,1.2004801920768306E-3,1551,97,14,2,0,2,0,0,0,1666,0,0,0,0]
["IS1","NNE","DORKING HEALTHCARE LIMITED (DHC)",242,2078,0.95041322314049592,2.8925619834710745E-2,191,39,5,3,4,0,0,0,0,7,1,0,234,0]
["IS1","NVG01","FAIRFIELD HOSPITAL",185,1777,0.98918918918918919,0,161,22,0,0,0,2,0,0,0,185,0,0,0,0]
["IS1","NXM","HORDER HEALTHCARE",38,411,1,0,35,3,0,0,0,0,0,0,0,38,0,0,0,0]
["IS1","NV1","INHEALTH LIMITED",4136,2933,0.92819148936170215,3.3849129593810444E-2,3111,728,150,73,67,7,0,0,0,0,0,0,4136,0]
["IS1","NCR","ISIGHT",21,476,1,0,20,1,0,0,0,0,0,0,0,0,21,0,0,0]
["IS1","ADP","KIMS HOSPITAL",46,2845,0.97826086956521741,0,42,3,1,0,0,0,0,0,0,0,10,0,36,0]
["IS1","ACG20","NEWMEDICA - BRISTOL - LITFIELD HOUSE",30,"NA",0.93333333333333335,3.3333333333333333E-2,25,3,1,0,1,0,0,0,0,28,0,0,2,0]
["IS1","Q1S8W","NEWMEDICA - BURY ST EDMUNDS",0,"NA","NA","NA",0,0,0,0,0,0,0,0,0,0,0,0,0,0]
["IS1","ACG36","NEWMEDICA - EXETER - GLEN HOUSE",24,"NA",1,0,20,4,0,0,0,0,0,0,0,23,0,0,1,0]
["IS1","ACG41","NEWMEDICA - FROME",27,"NA",1,0,24,3,0,0,0,0,0,0,0,26,0,0,1,0]
["IS1","ACG13","NEWMEDICA - GLOUCESTER (ASPEN MEDICAL CENTRE)",6,"NA",1,0,4,2,0,0,0,0,0,0,0,6,0,0,0,0]
["IS1","L0D9W","NEWMEDICA - GLOUCESTER (BRIGHOUSE COURT)",57,"NA",0.96491228070175439,3.5087719298245612E-2,54,1,0,2,0,0,0,0,0,57,0,0,0,0]
["IS1","ACG37","NEWMEDICA - IPSWICH",7,"NA",1,0,6,1,0,0,0,0,0,0,0,4,0,0,3,0]
["IS1","ACG38","NEWMEDICA - LANGFORD",0,"NA","NA","NA",0,0,0,0,0,0,0,0,0,0,0,0,0,0]
["IS1","P5Y6K","NEWMEDICA - SHREWSBURY",1,"NA","*","*","*","*","*","*","*","*","*","*","*","*","*","*","*","*"]
["IS1","ACG39","NEWMEDICA - SWINDON",12,"NA",1,0,8,4,0,0,0,0,0,0,0,12,0,0,0,0]
["IS1","ACG24","NEWMEDICA - TEESSIDE - NORTH ORMESBY",28,"NA",1,0,28,0,0,0,0,0,0,0,0,28,0,0,0,0]
["IS1","ACG40","NEWMEDICA - WAKEFIELD",16,"NA",1,0,14,2,0,0,0,0,0,0,0,16,0,0,0,0]
["IS1","ACG30","NEWMEDICA - WORKSOP - DUKERIES",1,"NA","*","*","*","*","*","*","*","*","*","*","*","*","*","*","*","*"]
["IS1","ACG19","NEWMEDICA COMMUNITY OPHTHALMOLOGY - LEEDS",3,"NA","*","*","*","*","*","*","*","*","*","*","*","*","*","*","*","*"]
["IS1","ACG07","NEWMEDICA COMMUNITY OPHTHALMOLOGY - LEICESTERSHIRE - LEICESTER (STONEYGATE EYE HOSPITAL)",5,"NA",1,0,5,0,0,0,0,0,0,0,0,0,0,0,5,0]
["IS1","ACG12","NEWMEDICA COMMUNITY OPHTHALMOLOGY - NORTH EAST LINCOLNSHIRE - GRIMSBY",14,"NA",1,0,14,0,0,0,0,0,0,0,0,13,0,0,1,0]
["IS1","ACG08","NEWMEDICA OPHTHALMOLOGY - NUNEATON - CAMP HILL - GP LED HEALTH CENTRE",35,"NA",1,0,34,1,0,0,0,0,0,0,0,0,0,0,35,0]
["IS1","Y05019","OLDHAM TOTAL SKIN SERVICE",60,"NA",1,0,60,0,0,0,0,0,0,0,0,0,60,0,0,0]
["IS1","NMN","PENINSULA HEALTH LLP",1,"NA","*","*","*","*","*","*","*","*","*","*","*","*","*","*","*","*"]
["IS1","NEQ","PHOENIX HEALTH SOLUTIONS LIMITED HQ",58,"NA",0.94827586206896552,3.4482758620689655E-2,44,11,1,2,0,0,58,0,0,0,0,0,0,0]
["IS1","NEY","PIONEER HEALTHCARE LIMITED",157,164,0.90445859872611467,5.0955414012738856E-2,115,27,7,2,6,0,157,0,0,0,0,0,0,0]
["IS1","NTP13","PRACTICE PLUS GROUP HOSPITAL - BARLBOROUGH",400,1064,0.96250000000000002,1.2500000000000001E-2,346,39,10,3,2,0,400,0,0,0,0,0,0,0]
["IS1","NTPH2","PRACTICE PLUS GROUP HOSPITAL - EMERSONS GREEN",192,1637,0.99479166666666663,0,177,14,1,0,0,0,0,192,0,0,0,0,0,0]
["IS1","NTP15","PRACTICE PLUS GROUP HOSPITAL - ILFORD",1328,1910,0.99021084337349397,4.5180722891566263E-3,1119,196,5,4,2,2,0,0,1328,0,0,0,0,0]
["IS1","NTPH5","PRACTICE PLUS GROUP HOSPITAL - PLYMOUTH",131,960,0.98473282442748089,0,116,13,2,0,0,0,0,131,0,0,0,0,0,0]
["IS1","NTPH1","PRACTICE PLUS GROUP HOSPITAL - SHEPTON MALLET",187,1505,0.96791443850267378,0,135,46,6,0,0,0,0,187,0,0,0,0,0,0]
["IS1","NTP11","PRACTICE PLUS GROUP HOSPITAL - SOUTHAMPTON",584,2894,0.98801369863013699,3.4246575342465752E-3,382,195,4,2,0,1,0,584,0,0,0,0,0,0]
["IS1","NTPAE","PRACTICE PLUS GROUP OPHTHALMOLOGY - NORTH WEST",86,1464,0.96511627906976749,2.3255813953488372E-2,72,11,1,2,0,0,86,0,0,0,0,0,0,0]
["IS1","NTPAD","PRACTICE PLUS GROUP SURGICAL CENTRE - ST MARYS PORTSMOUTH",1106,1740,0.99728752260397835,0,1066,37,2,0,0,1,0,1106,0,0,0,0,0,0]
["IS1","NAM","PROBUS SURGERY LIMITED",0,"NA","NA","NA",0,0,0,0,0,0,0,0,0,0,0,0,0,0]
["IS1","NVC","RAMSAY HEALTHCARE UK OPERATIONS LIMITED",1315,73894,0.99087452471482895,6.8441064638783272E-3,1175,128,0,3,6,3,0,0,0,0,1010,0,305,0]
["IS1","NT3","SPIRE HEALTHCARE",433,33444,0.91454965357967666,4.3879907621247112E-2,343,53,18,7,12,0,0,0,0,0,0,0,433,0]
["IS1","G3Z1Q","SULIS HOSPITAL BATH (FOXCOTE AVENUE)",133,"NA",0.96240601503759393,2.2556390977443608E-2,125,3,0,1,2,2,0,0,0,133,0,0,0,0]
["IS1","AAH","TETBURY HOSPITAL TRUST LTD",3,"NA","*","*","*","*","*","*","*","*","*","*","*","*","*","*","*","*"]
["IS1","NQT","VIRGIN CARE LTD",63,208,0.98412698412698407,1.5873015873015872E-2,54,8,0,0,1,0,0,0,0,0,21,0,42,0]
["IS1","NDA","VIRGIN CARE SERVICES LTD",15,"NA",1,0,15,0,0,0,0,0,0,0,0,0,14,0,1,0]

{"sheet":"BS","index":4,"n_rows":224,"n_cols":24,"rows_kept":224,"cut":false,"hidden":true,"merged":[]}
[null,"Sort","Region (Local Office) code","Region (Local Office) name","Org code","Org name",null,"Sort Lists:","Sort range…","Sort range…","STP Reference Lists:","Code…","Name…","Region (Local Office) Linked Lists:","Code…","Name…","Orgs Reference List:","Code…","Code…","Name…",null,"Orgs Linked List:","Code…","Name…"]
["OP Region (Local Office)",1,1,1,"N/A","N/A",null,null,"STP Code","STP Code",null,"QE1","Healthier Lancashire and South Cumbria",null,"QE1","Healthier Lancashire and South Cumbria",null,"QE1","RXL","BLACKPOOL TEACHING HOSPITALS NHS FOUNDATION TRUST",null,null,"RXL","BLACKPOOL TEACHING HOSPITALS NHS FOUNDATION TRUST"]
["OP Orgs",1,1,1,1,1,null,null,"STP Name","Org Code",null,"QF7","South Yorkshire and Bassetlaw STP",null,"QF7","South Yorkshire and Bassetlaw STP",null,"QE1","RXR","EAST LANCASHIRE HOSPITALS NHS TRUST",null,null,"RXR","EAST LANCASHIRE HOSPITALS NHS TRUST"]
[null,null,null,null,null,null,null,null,"Total Responses","Org Name",null,"QGH","Herefordshire and Worcestershire STP",null,"QGH","Herefordshire and Worcestershire STP",null,"QE1","RXN","LANCASHIRE TEACHING HOSPITALS NHS FOUNDATION TRUST",null,null,"RXN","LANCASHIRE TEACHING HOSPITALS NHS FOUNDATION TRUST"]
[null,null,null,null,null,null,null,null,"Total Eligible","Total Responses",null,"QH8","Mid and South Essex STP",null,"QH8","Mid and South Essex STP",null,"QE1","RTX","UNIVERSITY HOSPITALS OF MORECAMBE BAY NHS FOUNDATION TRUST",null,null,"RTX","UNIVERSITY HOSPITALS OF MORECAMBE BAY NHS FOUNDATION TRUST"]
[null,null,null,null,null,null,null,null,"Percentage Positive","Total Eligible",null,"QHG","Bedfordshire, Luton and Milton Keynes STP",null,"QHG","Bedfordshire, Luton and Milton Keynes STP",null,"QF7","RFF","BARNSLEY HOSPITAL NHS FOUNDATION TRUST",null,null,"RFF","BARNSLEY HOSPITAL NHS FOUNDATION TRUST"]
[null,null,null,null,null,null,null,null,"Percentage Negative","Percentage Positive",null,"QHL","Birmingham and Solihull STP",null,"QHL","Birmingham and Solihull STP",null,"QF7","RP5","DONCASTER AND BASSETLAW TEACHING HOSPITALS NHS FOUNDATION TRUST",null,null,"RP5","DONCASTER AND BASSETLAW TEACHING HOSPITALS NHS FOUNDATION TRUST"]
[null,null,null,null,null,null,null,null,"Very Good","Percentage Negative",null,"QHM","Cumbria and North East STP",null,"QHM","Cumbria and North East STP",null,"QF7","RCU","SHEFFIELD CHILDREN'S NHS FOUNDATION TRUST",null,null,"RCU","SHEFFIELD CHILDREN'S NHS FOUNDATION TRUST"]
[null,null,null,null,null,null,null,null,"Good","Very Good",null,"QJ2","Joined Up Care Derbyshire STP",null,"QJ2","Joined Up Care Derbyshire STP",null,"QF7","RHQ","SHEFFIELD TEACHING HOSPITALS NHS FOUNDATION TRUST",null,null,"RHQ","SHEFFIELD TEACHING HOSPITALS NHS FOUNDATION TRUST"]
[null,null,null,null,null,null,null,null,"Neither Good nor Poor","Good",null,"QJG","Suffolk and North East Essex STP",null,"QJG","Suffolk and North East Essex STP",null,"QF7","RFR","THE ROTHERHAM NHS FOUNDATION TRUST",null,null,"RFR","THE ROTHERHAM NHS FOUNDATION TRUST"]
[null,null,null,null,null,null,null,null,"Poor","Neither Good nor Poor",null,"QJK","Devon STP",null,"QJK","Devon STP",null,"QGH","RWP","WORCESTERSHIRE ACUTE HOSPITALS NHS TRUST",null,null,"RWP","WORCESTERSHIRE ACUTE HOSPITALS NHS TRUST"]
[null,null,null,null,null,null,null,null,"Very Poor","Poor",null,"QJM","Lincolnshire STP",null,"QJM","Lincolnshire STP",null,"QGH","RLQ","WYE VALLEY NHS TRUST",null,null,"RLQ","WYE VALLEY NHS TRUST"]
[null,null,null,null,null,null,null,null,"Don't Know","Very Poor",null,"QK1","Leicester, Leicestershire and Rutland STP",null,"QK1","Leicester, Leicestershire and Rutland STP",null,"QH8","RAJ","MID AND SOUTH ESSEX NHS FOUNDATION TRUST",null,null,"RAJ","MID AND SOUTH ESSEX NHS FOUNDATION TRUST"]
[null,null,null,null,null,null,null,null,null,"Don't Know",null,"QKK","Our Healthier South East London STP",null,"QKK","Our Healthier South East London STP",null,"QHG","RC9","BEDFORDSHIRE HOSPITALS NHS FOUNDATION TRUST",null,null,"RC9","BEDFORDSHIRE HOSPITALS NHS FOUNDATION TRUST"]
[null,null,null,null,null,null,null,null,null,"Mode SMS",null,"QKS","Kent and Medway STP",null,"QKS","Kent and Medway STP",null,"QHG","RD8","MILTON KEYNES UNIVERSITY HOSPITAL NHS FOUNDATION TRUST",null,null,"RD8","MILTON KEYNES UNIVERSITY HOSPITAL NHS FOUNDATION TRUST"]
[null,null,null,null,null,null,null,null,null,"Mode Electronic at Appointment",null,"QM7","Hertfordshire and West Essex STP",null,"QM7","Hertfordshire and West Essex STP",null,"QHL","RRK","UNIVERSITY HOSPITALS BIRMINGHAM NHS FOUNDATION TRUST",null,null,"RRK","UNIVERSITY HOSPITALS BIRMINGHAM NHS FOUNDATION TRUST"]
[null,null,null,null,null,null,null,null,null,"Mode Electronic After Appointment",null,"QMF","East London Health & Care Partnership (STP)",null,"QMF","East London Health & Care Partnership (STP)",null,"QHM","RXP","COUNTY DURHAM AND DARLINGTON NHS FOUNDATION TRUST",null,null,"RXP","COUNTY DURHAM AND DARLINGTON NHS FOUNDATION TRUST"]
[null,null,null,null,null,null,null,null,null,"Mode Paper At Appointment",null,"QMJ","North London Partners in Health & Care (STP)",null,"QMJ","North London Partners in Health & Care (STP)",null,"QHM","RR7","GATESHEAD HEALTH NHS FOUNDATION TRUST",null,null,"RR7","GATESHEAD HEALTH NHS FOUNDATION TRUST"]
[null,null,null,null,null,null,null,null,null,"Mode Paper After Appointment",null,"QMM","Norfolk and Waveney Health & Care Partnership (STP)",null,"QMM","Norfolk and Waveney Health & Care Partnership (STP)",null,"QHM","RNN","NORTH CUMBRIA INTEGRATED CARE NHS FOUNDATION TRUST",null,null,"RNN","NORTH CUMBRIA INTEGRATED CARE NHS FOUNDATION TRUST"]
[null,null,null,null,null,null,null,null,null,"Mode Telephone",null,"QNC","Staffordshire & Stoke on Trent STP",null,"QNC","Staffordshire & Stoke on Trent STP",null,"QHM","RVW","NORTH TEES AND HARTLEPOOL NHS FOUNDATION TRUST",null,null,"RVW","NORTH TEES AND HARTLEPOOL NHS FOUNDATION TRUST"]
[null,null,null,null,null,null,null,null,null,"Mode Other",null,"QNQ","Frimley Health & Care (STP)",null,"QNQ","Frimley Health & Care (STP)",null,"QHM","RTF","NORTHUMBRIA HEALTHCARE NHS FOUNDATION TRUST",null,null,"RTF","NORTHUMBRIA HEALTHCARE NHS FOUNDATION TRUST"]
[null,null,null,null,null,null,null,null,null,null,null,"QNX","Sussex Health and Care Partnership STP",null,"QNX","Sussex Health and Care Partnership STP",null,"QHM","RTR","SOUTH TEES HOSPITALS NHS FOUNDATION TRUST",null,null,"RTR","SOUTH TEES HOSPITALS NHS FOUNDATION TRUST"]
[null,null,null,null,null,null,null,null,null,null,null,"QOC","Shropshire and Telford and Wrekin STP",null,"QOC","Shropshire and Telford and Wrekin STP",null,"QHM","R0B","SOUTH TYNESIDE AND SUNDERLAND NHS FOUNDATION TRUST",null,null,"R0B","SOUTH TYNESIDE AND SUNDERLAND NHS FOUNDATION TRUST"]
[null,null,null,null,null,null,null,null,null,null,null,"QOP","Greater Manchester Health & Social Care Partnership",null,"QOP","Greater Manchester Health & Social Care Partnership",null,"QHM","RTD","THE NEWCASTLE UPON TYNE HOSPITALS NHS FOUNDATION TRUST",null,null,"RTD","THE NEWCASTLE UPON TYNE HOSPITALS NHS FOUNDATION TRUST"]
[null,null,null,null,null,null,null,null,null,null,null,"QOQ","Humber, Coast and Vale STP",null,"QOQ","Humber, Coast and Vale STP",null,"QJ2","RFS","CHESTERFIELD ROYAL HOSPITAL NHS FOUNDATION TRUST",null,null,"RFS","CHESTERFIELD ROYAL HOSPITAL NHS FOUNDATION TRUST"]
[null,null,null,null,null,null,null,null,null,null,null,"QOX","Bath and North East Somerset, Swindon and Wiltshire STP",null,"QOX","Bath and North East Somerset, Swindon and Wiltshire STP",null,"QJ2","RTG","UNIVERSITY HOSPITALS OF DERBY AND BURTON NHS FOUNDATION TRUST",null,null,"RTG","UNIVERSITY HOSPITALS OF DERBY AND BURTON NHS FOUNDATION TRUST"]
[null,null,null,null,null,null,null,null,null,null,null,"QPM","Northamptonshire STP",null,"QPM","Northamptonshire STP",null,"QJG","RDE","EAST SUFFOLK AND NORTH ESSEX NHS FOUNDATION TRUST",null,null,"RDE","EAST SUFFOLK AND NORTH ESSEX NHS FOUNDATION TRUST"]
[null,null,null,null,null,null,null,null,null,null,null,"QR1","Gloucestershire STP",null,"QR1","Gloucestershire STP",null,"QJG","RGR","WEST SUFFOLK NHS FOUNDATION TRUST",null,null,"RGR","WEST SUFFOLK NHS FOUNDATION TRUST"]
[null,null,null,null,null,null,null,null,null,null,null,"QRL","Hampshire and the Isle of Wight STP",null,"QRL","Hampshire and the Isle of Wight STP",null,"QJK","RBZ","NORTHERN DEVON HEALTHCARE NHS TRUST",null,null,"RBZ","NORTHERN DEVON HEALTHCARE NHS TRUST"]
[null,null,null,null,null,null,null,null,null,null,null,"QRV","North West London Health & Care Partnership (STP)",null,"QRV","North West London Health & Care Partnership (STP)",null,"QJK","RH8","ROYAL DEVON AND EXETER NHS FOUNDATION TRUST",null,null,"RH8","ROYAL DEVON AND EXETER NHS FOUNDATION TRUST"]
[null,null,null,null,null,null,null,null,null,null,null,"QSL","Somerset STP",null,"QSL","Somerset STP",null,"QJK","RA9","TORBAY AND SOUTH DEVON NHS FOUNDATION TRUST",null,null,"RA9","TORBAY AND SOUTH DEVON NHS FOUNDATION TRUST"]
[null,null,null,null,null,null,null,null,null,null,null,"QT1","Nottingham and Nottinghamshire Health and Care STP",null,"QT1","Nottingham and Nottinghamshire Health and Care STP",null,"QJK","RK9","UNIVERSITY HOSPITALS PLYMOUTH NHS TRUST",null,null,"RK9","UNIVERSITY HOSPITALS PLYMOUTH NHS TRUST"]
[null,null,null,null,null,null,null,null,null,null,null,"QT6","Cornwall and the Isles of Scilly Health & Social Care Partnership (STP)",null,"QT6","Cornwall and the Isles of Scilly Health & Social Care Partnership (STP)",null,"QJM","RWD","UNITED LINCOLNSHIRE HOSPITALS NHS TRUST",null,null,"RWD","UNITED LINCOLNSHIRE HOSPITALS NHS TRUST"]
[null,null,null,null,null,null,null,null,null,null,null,"QU9","Buckinghamshire, Oxfordshire and Berkshire West STP",null,"QU9","Buckinghamshire, Oxfordshire and Berkshire West STP",null,"QK1","RWE","UNIVERSITY HOSPITALS OF LEICESTER NHS TRUST",null,null,"RWE","UNIVERSITY HOSPITALS OF LEICESTER NHS TRUST"]
[null,null,null,null,null,null,null,null,null,null,null,"QUA","The Black Country and West Birmingham STP",null,"QUA","The Black Country and West Birmingham STP",null,"QKK","RJ1","GUY'S AND ST THOMAS' NHS FOUNDATION TRUST",null,null,"RJ1","GUY'S AND ST THOMAS' NHS FOUNDATION TRUST"]
[null,null,null,null,null,null,null,null,null,null,null,"QUE","Cambridgeshire and Peterborough STP",null,"QUE","Cambridgeshire and Peterborough STP",null,"QKK","RJZ","KING'S COLLEGE HOSPITAL NHS FOUNDATION TRUST",null,null,"RJZ","KING'S COLLEGE HOSPITAL NHS FOUNDATION TRUST"]
[null,null,null,null,null,null,null,null,null,null,null,"QUY","Bristol, North Somerset and South Gloucestershire STP",null,"QUY","Bristol, North Somerset and South Gloucestershire STP",null,"QKK","RJ2","LEWISHAM AND GREENWICH NHS TRUST",null,null,"RJ2","LEWISHAM AND GREENWICH NHS TRUST"]
[null,null,null,null,null,null,null,null,null,null,null,"QVV","Dorset STP",null,"QVV","Dorset STP",null,"QKS","RN7","DARTFORD AND GRAVESHAM NHS TRUST",null,null,"RN7","DARTFORD AND GRAVESHAM NHS TRUST"]
[null,null,null,null,null,null,null,null,null,null,null,"QWE","South West London Health & Care Partnership (STP)",null,"QWE","South West London Health & Care Partnership (STP)",null,"QKS","RVV","EAST KENT HOSPITALS UNIVERSITY NHS FOUNDATION TRUST",null,null,"RVV","EAST KENT HOSPITALS UNIVERSITY NHS FOUNDATION TRUST"]
[null,null,null,null,null,null,null,null,null,null,null,"QWO","West Yorkshire and Harrogate Health & Care Partnership (STP)",null,"QWO","West Yorkshire and Harrogate Health & Care Partnership (STP)",null,"QKS","RWF","MAIDSTONE AND TUNBRIDGE WELLS NHS TRUST",null,null,"RWF","MAIDSTONE AND TUNBRIDGE WELLS NHS TRUST"]
[null,null,null,null,null,null,null,null,null,null,null,"QWU","Coventry and Warwickshire STP",null,"QWU","Coventry and Warwickshire STP",null,"QKS","RPA","MEDWAY NHS FOUNDATION TRUST",null,null,"RPA","MEDWAY NHS FOUNDATION TRUST"]
[null,null,null,null,null,null,null,null,null,null,null,"QXU","Surrey Heartlands Health & Care Partnership (STP)",null,"QXU","Surrey Heartlands Health & Care Partnership (STP)",null,"QM7","RWH","EAST AND NORTH HERTFORDSHIRE NHS TRUST",null,null,"RWH","EAST AND NORTH HERTFORDSHIRE NHS TRUST"]
[null,null,null,null,null,null,null,null,null,null,null,"QYG","Cheshire and Merseyside STP",null,"QYG","Cheshire and Merseyside STP",null,"QM7","RQW","THE PRINCESS ALEXANDRA HOSPITAL NHS TRUST",null,null,"RQW","THE PRINCESS ALEXANDRA HOSPITAL NHS TRUST"]
[null,null,null,null,null,null,null,null,null,null,null,"zIS1","Independent Sector Providers",null,"zIS1","Independent Sector Providers",null,"QM7","RWG","WEST HERTFORDSHIRE HOSPITALS NHS TRUST",null,null,"RWG","WEST HERTFORDSHIRE HOSPITALS NHS TRUST"]
[null,null,null,null,null,null,null,null,null,null,null,null,null,null,null,null,null,"QMF","RF4","BARKING, HAVERING AND REDBRIDGE UNIVERSITY HOSPITALS NHS TRUST",null,null,"RF4","BARKING, HAVERING AND REDBRIDGE UNIVERSITY HOSPITALS NHS TRUST"]
[null,null,null,null,null,null,null,null,null,null,null,null,null,null,null,null,null,"QMF","R1H","BARTS HEALTH NHS TRUST",null,null,"R1H","BARTS HEALTH NHS TRUST"]
[null,null,null,null,null,null,null,null,null,null,null,null,null,null,null,null,null,"QMF","RQX","HOMERTON UNIVERSITY HOSPITAL NHS FOUNDATION TRUST",null,null,"RQX","HOMERTON UNIVERSITY HOSPITAL NHS FOUNDATION TRUST"]
[null,null,null,null,null,null,null,null,null,null,null,null,null,null,null,null,null,"QMJ","RP4","GREAT ORMOND STREET HOSPITAL FOR CHILDREN NHS FOUNDATION TRUST",null,null,"RP4","GREAT ORMOND STREET HOSPITAL FOR CHILDREN NHS FOUNDATION TRUST"]
[null,null,null,null,null,null,null,null,null,null,null,null,null,null,null,null,null,"QMJ","RP6","MOORFIELDS EYE HOSPITAL NHS FOUNDATION TRUST",null,null,"RP6","MOORFIELDS EYE HOSPITAL NHS FOUNDATION TRUST"]
[null,null,null,null,null,null,null,null,null,null,null,null,null,null,null,null,null,"QMJ","RAP","NORTH MIDDLESEX UNIVERSITY HOSPITAL NHS TRUST",null,null,"RAP","NORTH MIDDLESEX UNIVERSITY HOSPITAL NHS TRUST"]
[null,null,null,null,null,null,null,null,null,null,null,null,null,null,null,null,null,"QMJ","RAL","ROYAL FREE LONDON NHS FOUNDATION TRUST",null,null,"RAL","ROYAL FREE LONDON NHS FOUNDATION TRUST"]
[null,null,null,null,null,null,null,null,null,null,null,null,null,null,null,null,null,"QMJ","RRV","UNIVERSITY COLLEGE LONDON HOSPITALS NHS FOUNDATION TRUST",null,null,"RRV","UNIVERSITY COLLEGE LONDON HOSPITALS NHS FOUNDATION TRUST"]
[null,null,null,null,null,null,null,null,null,null,null,null,null,null,null,null,null,"QMJ","RKE","WHITTINGTON HEALTH NHS TRUST",null,null,"RKE","WHITTINGTON HEALTH NHS TRUST"]
[null,null,null,null,null,null,null,null,null,null,null,null,null,null,null,null,null,"QMM","RGP","JAMES PAGET UNIVERSITY HOSPITALS NHS FOUNDATION TRUST",null,null,"RGP","JAMES PAGET UNIVERSITY HOSPITALS NHS FOUNDATION TRUST"]
[null,null,null,null,null,null,null,null,null,null,null,null,null,null,null,null,null,"QMM","RM1","NORFOLK AND NORWICH UNIVERSITY HOSPITALS NHS FOUNDATION TRUST",null,null,"RM1","NORFOLK AND NORWICH UNIVERSITY HOSPITALS NHS FOUNDATION TRUST"]
[null,null,null,null,null,null,null,null,null,null,null,null,null,null,null,null,null,"QMM","RCX","THE QUEEN ELIZABETH HOSPITAL, KING'S LYNN, NHS FOUNDATION TRUST",null,null,"RCX","THE QUEEN ELIZABETH HOSPITAL, KING'S LYNN, NHS FOUNDATION TRUST"]
[null,null,null,null,null,null,null,null,null,null,null,null,null,null,null,null,null,"QNC","RRE","MIDLANDS PARTNERSHIP NHS FOUNDATION TRUST",null,null,"RRE","MIDLANDS PARTNERSHIP NHS FOUNDATION TRUST"]
[null,null,null,null,null,null,null,null,null,null,null,null,null,null,null,null,null,"QNC","RJE","UNIVERSITY HOSPITALS OF NORTH MIDLANDS NHS TRUST",null,null,"RJE","UNIVERSITY HOSPITALS OF NORTH MIDLANDS NHS TRUST"]
[null,null,null,null,null,null,null,null,null,null,null,null,null,null,null,null,null,"QNQ","RDU","FRIMLEY HEALTH NHS FOUNDATION TRUST",null,null,"RDU","FRIMLEY HEALTH NHS FOUNDATION TRUST"]
[null,null,null,null,null,null,null,null,null,null,null,null,null,null,null,null,null,"QNX","RXC","EAST SUSSEX HEALTHCARE NHS TRUST",null,null,"RXC","EAST SUSSEX HEALTHCARE NHS TRUST"]
[null,null,null,null,null,null,null,null,null,null,null,null,null,null,null,null,null,"QNX","RPC","QUEEN VICTORIA HOSPITAL NHS FOUNDATION TRUST",null,null,"RPC","QUEEN VICTORIA HOSPITAL NHS FOUNDATION TRUST"]
[null,null,null,null,null,null,null,null,null,null,null,null,null,null,null,null,null,"QNX","RYR","UNIVERSITY HOSPITALS SUSSEX NHS FOUNDATION TRUST",null,null,"RYR","UNIVERSITY HOSPITALS SUSSEX NHS FOUNDATION TRUST"]
[null,null,null,null,null,null,null,null,null,null,null,null,null,null,null,null,null,"QOC","RL1","THE ROBERT JONES AND AGNES HUNT ORTHOPAEDIC HOSPITAL NHS FOUNDATION TRUST",null,null,"RL1","THE ROBERT JONES AND AGNES HUNT ORTHOPAEDIC HOSPITAL NHS FOUNDATION TRUST"]
[null,null,null,null,null,null,null,null,null,null,null,null,null,null,null,null,null,"QOC","RXW","THE SHREWSBURY AND TELFORD HOSPITAL NHS TRUST",null,null,"RXW","THE SHREWSBURY AND TELFORD HOSPITAL NHS TRUST"]
[null,null,null,null,null,null,null,null,null,null,null,null,null,null,null,null,null,"QOP","RMC","BOLTON NHS FOUNDATION TRUST",null,null,"RMC","BOLTON NHS FOUNDATION TRUST"]
[null,null,null,null,null,null,null,null,null,null,null,null,null,null,null,null,null,"QOP","R0A","MANCHESTER UNIVERSITY NHS FOUNDATION TRUST",null,null,"R0A","MANCHESTER UNIVERSITY NHS FOUNDATION TRUST"]
[null,null,null,null,null,null,null,null,null,null,null,null,null,null,null,null,null,"QOP","RM3","NORTHERN CARE ALLIANCE NHS FOUNDATION TRUST",null,null,"RM3","NORTHERN CARE ALLIANCE NHS FOUNDATION TRUST"]
[null,null,null,null,null,null,null,null,null,null,null,null,null,null,null,null,null,"QOP","RW6","PENNINE ACUTE HOSPITALS NHS TRUST",null,null,"RW6","PENNINE ACUTE HOSPITALS NHS TRUST"]
[null,null,null,null,null,null,null,null,null,null,null,null,null,null,null,null,null,"QOP","RWJ","STOCKPORT NHS FOUNDATION TRUST",null,null,"RWJ","STOCKPORT NHS FOUNDATION TRUST"]
[null,null,null,null,null,null,null,null,null,null,null,null,null,null,null,null,null,"QOP","RMP","TAMESIDE AND GLOSSOP INTEGRATED CARE NHS FOUNDATION TRUST",null,null,"RMP","TAMESIDE AND GLOSSOP INTEGRATED CARE NHS FOUNDATION TRUST"]
[null,null,null,null,null,null,null,null,null,null,null,null,null,null,null,null,null,"QOP","RBV","THE CHRISTIE NHS FOUNDATION TRUST",null,null,"RBV","THE CHRISTIE NHS FOUNDATION TRUST"]
[null,null,null,null,null,null,null,null,null,null,null,null,null,null,null,null,null,"QOP","RRF","WRIGHTINGTON, WIGAN AND LEIGH NHS FOUNDATION TRUST",null,null,"RRF","WRIGHTINGTON, WIGAN AND LEIGH NHS FOUNDATION TRUST"]
[null,null,null,null,null,null,null,null,null,null,null,null,null,null,null,null,null,"QOQ","RCD","HARROGATE AND DISTRICT NHS FOUNDATION TRUST",null,null,"RCD","HARROGATE AND DISTRICT NHS FOUNDATION TRUST"]
[null,null,null,null,null,null,null,null,null,null,null,null,null,null,null,null,null,"QOQ","RWA","HULL UNIVERSITY TEACHING HOSPITALS NHS TRUST",null,null,"RWA","HULL UNIVERSITY TEACHING HOSPITALS NHS TRUST"]
[null,null,null,null,null,null,null,null,null,null,null,null,null,null,null,null,null,"QOQ","RJL","NORTHERN LINCOLNSHIRE AND GOOLE NHS FOUNDATION TRUST",null,null,"RJL","NORTHERN LINCOLNSHIRE AND GOOLE NHS FOUNDATION TRUST"]
[null,null,null,null,null,null,null,null,null,null,null,null,null,null,null,null,null,"QOQ","RCB","YORK AND SCARBOROUGH TEACHING HOSPITALS NHS FOUNDATION TRUST",null,null,"RCB","YORK AND SCARBOROUGH TEACHING HOSPITALS NHS FOUNDATION TRUST"]
[null,null,null,null,null,null,null,null,null,null,null,null,null,null,null,null,null,"QOX","RN3","GREAT WESTERN HOSPITALS NHS FOUNDATION TRUST",null,null,"RN3","GREAT WESTERN HOSPITALS NHS FOUNDATION TRUST"]
[null,null,null,null,null,null,null,null,null,null,null,null,null,null,null,null,null,"QOX","RD1","ROYAL UNITED HOSPITALS BATH NHS FOUNDATION TRUST",null,null,"RD1","ROYAL UNITED HOSPITALS BATH NHS FOUNDATION TRUST"]
[null,null,null,null,null,null,null,null,null,null,null,null,null,null,null,null,null,"QOX","RNZ","SALISBURY NHS FOUNDATION TRUST",null,null,"RNZ","SALISBURY NHS FOUNDATION TRUST"]
[null,null,null,null,null,null,null,null,null,null,null,null,null,null,null,null,null,"QPM","RNQ","KETTERING GENERAL HOSPITAL NHS FOUNDATION TRUST",null,null,"RNQ","KETTERING GENERAL HOSPITAL NHS FOUNDATION TRUST"]
[null,null,null,null,null,null,null,null,null,null,null,null,null,null,null,null,null,"QPM","RNS","NORTHAMPTON GENERAL HOSPITAL NHS TRUST",null,null,"RNS","NORTHAMPTON GENERAL HOSPITAL NHS TRUST"]
[null,null,null,null,null,null,null,null,null,null,null,null,null,null,null,null,null,"QR1","RTE","GLOUCESTERSHIRE HOSPITALS NHS FOUNDATION TRUST",null,null,"RTE","GLOUCESTERSHIRE HOSPITALS NHS FOUNDATION TRUST"]
[null,null,null,null,null,null,null,null,null,null,null,null,null,null,null,null,null,"QRL","RN5","HAMPSHIRE HOSPITALS NHS FOUNDATION TRUST",null,null,"RN5","HAMPSHIRE HOSPITALS NHS FOUNDATION TRUST"]
[null,null,null,null,null,null,null,null,null,null,null,null,null,null,null,null,null,"QRL","R1F","ISLE OF WIGHT NHS TRUST",null,null,"R1F","ISLE OF WIGHT NHS TRUST"]
[null,null,null,null,null,null,null,null,null,null,null,null,null,null,null,null,null,"QRL","RHU","PORTSMOUTH HOSPITALS UNIVERSITY NATIONAL HEALTH SERVICE TRUST",null,null,"RHU","PORTSMOUTH HOSPITALS UNIVERSITY NATIONAL HEALTH SERVICE TRUST"]
[null,null,null,null,null,null,null,null,null,null,null,null,null,null,null,null,null,"QRL","RHM","UNIVERSITY HOSPITAL SOUTHAMPTON NHS FOUNDATION TRUST",null,null,"RHM","UNIVERSITY HOSPITAL SOUTHAMPTON NHS FOUNDATION TRUST"]
[null,null,null,null,null,null,null,null,null,null,null,null,null,null,null,null,null,"QRV","RYJ","IMPERIAL COLLEGE HEALTHCARE NHS TRUST",null,null,"RYJ","IMPERIAL COLLEGE HEALTHCARE NHS TRUST"]
[null,null,null,null,null,null,null,null,null,null,null,null,null,null,null,null,null,"QRV","R1K","LONDON NORTH WEST UNIVERSITY HEALTHCARE NHS TRUST",null,null,"R1K","LONDON NORTH WEST UNIVERSITY HEALTHCARE NHS TRUST"]
[null,null,null,null,null,null,null,null,null,null,null,null,null,null,null,null,null,"QRV","RAN","ROYAL NATIONAL ORTHOPAEDIC HOSPITAL NHS TRUST",null,null,"RAN","ROYAL NATIONAL ORTHOPAEDIC HOSPITAL NHS TRUST"]
[null,null,null,null,null,null,null,null,null,null,null,null,null,null,null,null,null,"QRV","RAS","THE HILLINGDON HOSPITALS NHS FOUNDATION TRUST",null,null,"RAS","THE HILLINGDON HOSPITALS NHS FOUNDATION TRUST"]
[null,null,null,null,null,null,null,null,null,null,null,null,null,null,null,null,null,"QRV","RPY","THE ROYAL MARSDEN NHS FOUNDATION TRUST",null,null,"RPY","THE ROYAL MARSDEN NHS FOUNDATION TRUST"]
[null,null,null,null,null,null,null,null,null,null,null,null,null,null,null,null,null,"QSL","RH5","SOMERSET NHS FOUNDATION TRUST",null,null,"RH5","SOMERSET NHS FOUNDATION TRUST"]
[null,null,null,null,null,null,null,null,null,null,null,null,null,null,null,null,null,"QSL","RA4","YEOVIL DISTRICT HOSPITAL NHS FOUNDATION TRUST",null,null,"RA4","YEOVIL DISTRICT HOSPITAL NHS FOUNDATION TRUST"]
[null,null,null,null,null,null,null,null,null,null,null,null,null,null,null,null,null,"QT1","RX1","NOTTINGHAM UNIVERSITY HOSPITALS NHS TRUST",null,null,"RX1","NOTTINGHAM UNIVERSITY HOSPITALS NHS TRUST"]
[null,null,null,null,null,null,null,null,null,null,null,null,null,null,null,null,null,"QT1","RK5","SHERWOOD FOREST HOSPITALS NHS FOUNDATION TRUST",null,null,"RK5","SHERWOOD FOREST HOSPITALS NHS FOUNDATION TRUST"]
[null,null,null,null,null,null,null,null,null,null,null,null,null,null,null,null,null,"QT6","REF","ROYAL CORNWALL HOSPITALS NHS TRUST",null,null,"REF","ROYAL CORNWALL HOSPITALS NHS TRUST"]
[null,null,null,null,null,null,null,null,null,null,null,null,null,null,null,null,null,"QU9","RXQ","BUCKINGHAMSHIRE HEALTHCARE NHS TRUST",null,null,"RXQ","BUCKINGHAMSHIRE HEALTHCARE NHS TRUST"]
[null,null,null,null,null,null,null,null,null,null,null,null,null,null,null,null,null,"QU9","RTH","OXFORD UNIVERSITY HOSPITALS NHS FOUNDATION TRUST",null,null,"RTH","OXFORD UNIVERSITY HOSPITALS NHS FOUNDATION TRUST"]
[null,null,null,null,null,null,null,null,null,null,null,null,null,null,null,null,null,"QU9","RHW","ROYAL BERKSHIRE NHS FOUNDATION TRUST",null,null,"RHW","ROYAL BERKSHIRE NHS FOUNDATION TRUST"]
[null,null,null,null,null,null,null,null,null,null,null,null,null,null,null,null,null,"QUA","RXK","SANDWELL AND WEST BIRMINGHAM HOSPITALS NHS TRUST",null,null,"RXK","SANDWELL AND WEST BIRMINGHAM HOSPITALS NHS TRUST"]
[null,null,null,null,null,null,null,null,null,null,null,null,null,null,null,null,null,"QUA","RNA","THE DUDLEY GROUP NHS FOUNDATION TRUST",null,null,"RNA","THE DUDLEY GROUP NHS FOUNDATION TRUST"]
[null,null,null,null,null,null,null,null,null,null,null,null,null,null,null,null,null,"QUA","RL4","THE ROYAL WOLVERHAMPTON NHS TRUST",null,null,"RL4","THE ROYAL WOLVERHAMPTON NHS TRUST"]
[null,null,null,null,null,null,null,null,null,null,null,null,null,null,null,null,null,"QUA","RBK","WALSALL HEALTHCARE NHS TRUST",null,null,"RBK","WALSALL HEALTHCARE NHS TRUST"]
[null,null,null,null,null,null,null,null,null,null,null,null,null,null,null,null,null,"QUE","RGT","CAMBRIDGE UNIVERSITY HOSPITALS NHS FOUNDATION TRUST",null,null,"RGT","CAMBRIDGE UNIVERSITY HOSPITALS NHS FOUNDATION TRUST"]
[null,null,null,null,null,null,null,null,null,null,null,null,null,null,null,null,null,"QUE","RGN","NORTH WEST ANGLIA NHS FOUNDATION TRUST",null,null,"RGN","NORTH WEST ANGLIA NHS FOUNDATION TRUST"]
[null,null,null,null,null,null,null,null,null,null,null,null,null,null,null,null,null,"QUE","RGM","ROYAL PAPWORTH HOSPITAL NHS FOUNDATION TRUST",null,null,"RGM","ROYAL PAPWORTH HOSPITAL NHS FOUNDATION TRUST"]
[null,null,null,null,null,null,null,null,null,null,null,null,null,null,null,null,null,"QUY","RVJ","NORTH BRISTOL NHS TRUST",null,null,"RVJ","NORTH BRISTOL NHS TRUST"]
[null,null,null,null,null,null,null,null,null,null,null,null,null,null,null,null,null,"QUY","RA7","UNIVERSITY HOSPITALS BRISTOL AND WESTON NHS FOUNDATION TRUST",null,null,"RA7","UNIVERSITY HOSPITALS BRISTOL AND WESTON NHS FOUNDATION TRUST"]
[null,null,null,null,null,null,null,null,null,null,null,null,null,null,null,null,null,"QVV","RBD","DORSET COUNTY HOSPITAL NHS FOUNDATION TRUST",null,null,"RBD","DORSET COUNTY HOSPITAL NHS FOUNDATION TRUST"]
[null,null,null,null,null,null,null,null,null,null,null,null,null,null,null,null,null,"QVV","R0D","UNIVERSITY HOSPITALS DORSET NHS FOUNDATION TRUST",null,null,"R0D","UNIVERSITY HOSPITALS DORSET NHS FOUNDATION TRUST"]
[null,null,null,null,null,null,null,null,null,null,null,null,null,null,null,null,null,"QWE","RJ6","CROYDON HEALTH SERVICES NHS TRUST",null,null,"RJ6","CROYDON HEALTH SERVICES NHS TRUST"]
[null,null,null,null,null,null,null,null,null,null,null,null,null,null,null,null,null,"QWE","RVR","EPSOM AND ST HELIER UNIVERSITY HOSPITALS NHS TRUST",null,null,"RVR","EPSOM AND ST HELIER UNIVERSITY HOSPITALS NHS TRUST"]
[null,null,null,null,null,null,null,null,null,null,null,null,null,null,null,null,null,"QWE","RAX","KINGSTON HOSPITAL NHS FOUNDATION TRUST",null,null,"RAX","KINGSTON HOSPITAL NHS FOUNDATION TRUST"]
[null,null,null,null,null,null,null,null,null,null,null,null,null,null,null,null,null,"QWE","RJ7","ST GEORGE'S UNIVERSITY HOSPITALS NHS FOUNDATION TRUST",null,null,"RJ7","ST GEORGE'S UNIVERSITY HOSPITALS NHS FOUNDATION TRUST"]
[null,null,null,null,null,null,null,null,null,null,null,null,null,null,null,null,null,"QWO","RCF","AIREDALE NHS FOUNDATION TRUST",null,null,"RCF","AIREDALE NHS FOUNDATION TRUST"]
[null,null,null,null,null,null,null,null,null,null,null,null,null,null,null,null,null,"QWO","RAE","BRADFORD TEACHING HOSPITALS NHS FOUNDATION TRUST",null,null,"RAE","BRADFORD TEACHING HOSPITALS NHS FOUNDATION TRUST"]
[null,null,null,null,null,null,null,null,null,null,null,null,null,null,null,null,null,"QWO","RWY","CALDERDALE AND HUDDERSFIELD NHS FOUNDATION TRUST",null,null,"RWY","CALDERDALE AND HUDDERSFIELD NHS FOUNDATION TRUST"]
[null,null,null,null,null,null,null,null,null,null,null,null,null,null,null,null,null,"QWO","RR8","LEEDS TEACHING HOSPITALS NHS TRUST",null,null,"RR8","LEEDS TEACHING HOSPITALS NHS TRUST"]
[null,null,null,null,null,null,null,null,null,null,null,null,null,null,null,null,null,"QWO","RXF","MID YORKSHIRE HOSPITALS NHS TRUST",null,null,"RXF","MID YORKSHIRE HOSPITALS NHS TRUST"]
[null,null,null,null,null,null,null,null,null,null,null,null,null,null,null,null,null,"QWU","RLT","GEORGE ELIOT HOSPITAL NHS TRUST",null,null,"RLT","GEORGE ELIOT HOSPITAL NHS TRUST"]
[null,null,null,null,null,null,null,null,null,null,null,null,null,null,null,null,null,"QWU","RJC","SOUTH WARWICKSHIRE NHS FOUNDATION TRUST",null,null,"RJC","SOUTH WARWICKSHIRE NHS FOUNDATION TRUST"]
[null,null,null,null,null,null,null,null,null,null,null,null,null,null,null,null,null,"QWU","RKB","UNIVERSITY HOSPITALS COVENTRY AND WARWICKSHIRE NHS TRUST",null,null,"RKB","UNIVERSITY HOSPITALS COVENTRY AND WARWICKSHIRE NHS TRUST"]
[null,null,null,null,null,null,null,null,null,null,null,null,null,null,null,null,null,"QXU","RTK","ASHFORD AND ST PETER'S HOSPITALS NHS FOUNDATION TRUST",null,null,"RTK","ASHFORD AND ST PETER'S HOSPITALS NHS FOUNDATION TRUST"]
[null,null,null,null,null,null,null,null,null,null,null,null,null,null,null,null,null,"QXU","RA2","ROYAL SURREY COUNTY HOSPITAL NHS FOUNDATION TRUST",null,null,"RA2","ROYAL SURREY COUNTY HOSPITAL NHS FOUNDATION TRUST"]
[null,null,null,null,null,null,null,null,null,null,null,null,null,null,null,null,null,"QXU","RTP","SURREY AND SUSSEX HEALTHCARE NHS TRUST",null,null,"RTP","SURREY AND SUSSEX HEALTHCARE NHS TRUST"]
[null,null,null,null,null,null,null,null,null,null,null,null,null,null,null,null,null,"QYG","RBS","ALDER HEY CHILDREN'S NHS FOUNDATION TRUST",null,null,"RBS","ALDER HEY CHILDREN'S NHS FOUNDATION TRUST"]
[null,null,null,null,null,null,null,null,null,null,null,null,null,null,null,null,null,"QYG","RJN","EAST CHESHIRE NHS TRUST",null,null,"RJN","EAST CHESHIRE NHS TRUST"]
[null,null,null,null,null,null,null,null,null,null,null,null,null,null,null,null,null,"QYG","RBQ","LIVERPOOL HEART AND CHEST HOSPITAL NHS FOUNDATION TRUST",null,null,"RBQ","LIVERPOOL HEART AND CHEST HOSPITAL NHS FOUNDATION TRUST"]
[null,null,null,null,null,null,null,null,null,null,null,null,null,null,null,null,null,"QYG","REM","LIVERPOOL UNIVERSITY HOSPITALS NHS FOUNDATION TRUST",null,null,"REM","LIVERPOOL UNIVERSITY HOSPITALS NHS FOUNDATION TRUST"]
[null,null,null,null,null,null,null,null,null,null,null,null,null,null,null,null,null,"QYG","REP","LIVERPOOL WOMEN'S NHS FOUNDATION TRUST",null,null,"REP","LIVERPOOL WOMEN'S NHS FOUNDATION TRUST"]
[null,null,null,null,null,null,null,null,null,null,null,null,null,null,null,null,null,"QYG","RBT","MID CHESHIRE HOSPITALS NHS FOUNDATION TRUST",null,null,"RBT","MID CHESHIRE HOSPITALS NHS FOUNDATION TRUST"]
[null,null,null,null,null,null,null,null,null,null,null,null,null,null,null,null,null,"QYG","RVY","SOUTHPORT AND ORMSKIRK HOSPITAL NHS TRUST",null,null,"RVY","SOUTHPORT AND ORMSKIRK HOSPITAL NHS TRUST"]
[null,null,null,null,null,null,null,null,null,null,null,null,null,null,null,null,null,"QYG","RBN","ST HELENS AND KNOWSLEY TEACHING HOSPITALS NHS TRUST",null,null,"RBN","ST HELENS AND KNOWSLEY TEACHING HOSPITALS NHS TRUST"]
[null,null,null,null,null,null,null,null,null,null,null,null,null,null,null,null,null,"QYG","REN","THE CLATTERBRIDGE CANCER CENTRE NHS FOUNDATION TRUST",null,null,"REN","THE CLATTERBRIDGE CANCER CENTRE NHS FOUNDATION TRUST"]
[null,null,null,null,null,null,null,null,null,null,null,null,null,null,null,null,null,"QYG","RET","THE WALTON CENTRE NHS FOUNDATION TRUST",null,null,"RET","THE WALTON CENTRE NHS FOUNDATION TRUST"]
[null,null,null,null,null,null,null,null,null,null,null,null,null,null,null,null,null,"QYG","RWW","WARRINGTON AND HALTON TEACHING HOSPITALS NHS FOUNDATION TRUST",null,null,"RWW","WARRINGTON AND HALTON TEACHING HOSPITALS NHS FOUNDATION TRUST"]
[null,null,null,null,null,null,null,null,null,null,null,null,null,null,null,null,null,"QYG","RBL","WIRRAL UNIVERSITY TEACHING HOSPITAL NHS FOUNDATION TRUST",null,null,"RBL","WIRRAL UNIVERSITY TEACHING HOSPITAL NHS FOUNDATION TRUST"]
[null,null,null,null,null,null,null,null,null,null,null,null,null,null,null,null,null,"IS1","NYW17","ASPEN HEALTHCARE - MIDLAND EYE",null,null,"NYW17","ASPEN HEALTHCARE - MIDLAND EYE"]
[null,null,null,null,null,null,null,null,null,null,null,null,null,null,null,null,null,"IS1","NWF01","BENENDEN HOSPITAL",null,null,"NWF01","BENENDEN HOSPITAL"]
[null,null,null,null,null,null,null,null,null,null,null,null,null,null,null,null,null,"IS1","NT402","BMI - BATH CLINIC",null,null,"NT402","BMI - BATH CLINIC"]
[null,null,null,null,null,null,null,null,null,null,null,null,null,null,null,null,null,"IS1","NT405","BMI - BISHOPS WOOD",null,null,"NT405","BMI - BISHOPS WOOD"]
[null,null,null,null,null,null,null,null,null,null,null,null,null,null,null,null,null,"IS1","NT409","BMI - CHELSFIELD PARK HOSPITAL",null,null,"NT409","BMI - CHELSFIELD PARK HOSPITAL"]
[null,null,null,null,null,null,null,null,null,null,null,null,null,null,null,null,null,"IS1","NT417","BMI - GORING HALL HOSPITAL",null,null,"NT417","BMI - GORING HALL HOSPITAL"]
[null,null,null,null,null,null,null,null,null,null,null,null,null,null,null,null,null,"IS1","NT416","BMI - HENDON HOSPITAL",null,null,"NT416","BMI - HENDON HOSPITAL"]
[null,null,null,null,null,null,null,null,null,null,null,null,null,null,null,null,null,"IS1","NT433","BMI - SARUM ROAD HOSPITAL",null,null,"NT433","BMI - SARUM ROAD HOSPITAL"]
[null,null,null,null,null,null,null,null,null,null,null,null,null,null,null,null,null,"IS1","NT436","BMI - SHIRLEY OAKS HOSPITAL",null,null,"NT436","BMI - SHIRLEY OAKS HOSPITAL"]
[null,null,null,null,null,null,null,null,null,null,null,null,null,null,null,null,null,"IS1","NT401","BMI - THE ALEXANDRA HOSPITAL",null,null,"NT401","BMI - THE ALEXANDRA HOSPITAL"]
[null,null,null,null,null,null,null,null,null,null,null,null,null,null,null,null,null,"IS1","NT403","BMI - THE BEARDWOOD HOSPITAL",null,null,"NT403","BMI - THE BEARDWOOD HOSPITAL"]
[null,null,null,null,null,null,null,null,null,null,null,null,null,null,null,null,null,"IS1","NT404","BMI - THE BEAUMONT HOSPITAL",null,null,"NT404","BMI - THE BEAUMONT HOSPITAL"]
[null,null,null,null,null,null,null,null,null,null,null,null,null,null,null,null,null,"IS1","NT406","BMI - THE BLACKHEATH HOSPITAL",null,null,"NT406","BMI - THE BLACKHEATH HOSPITAL"]
[null,null,null,null,null,null,null,null,null,null,null,null,null,null,null,null,null,"IS1","NT408","BMI - THE CHAUCER HOSPITAL",null,null,"NT408","BMI - THE CHAUCER HOSPITAL"]
[null,null,null,null,null,null,null,null,null,null,null,null,null,null,null,null,null,"IS1","NT410","BMI - THE CHILTERN HOSPITAL",null,null,"NT410","BMI - THE CHILTERN HOSPITAL"]
[null,null,null,null,null,null,null,null,null,null,null,null,null,null,null,null,null,"IS1","NT411","BMI - THE CLEMENTINE CHURCHILL HOSPITAL",null,null,"NT411","BMI - THE CLEMENTINE CHURCHILL HOSPITAL"]
[null,null,null,null,null,null,null,null,null,null,null,null,null,null,null,null,null,"IS1","NT412","BMI - THE DROITWICH SPA HOSPITAL",null,null,"NT412","BMI - THE DROITWICH SPA HOSPITAL"]
[null,null,null,null,null,null,null,null,null,null,null,null,null,null,null,null,null,"IS1","NT418","BMI - THE HAMPSHIRE CLINIC",null,null,"NT418","BMI - THE HAMPSHIRE CLINIC"]
[null,null,null,null,null,null,null,null,null,null,null,null,null,null,null,null,null,"IS1","NT419","BMI - THE HARBOUR HOSPITAL",null,null,"NT419","BMI - THE HARBOUR HOSPITAL"]
[null,null,null,null,null,null,null,null,null,null,null,null,null,null,null,null,null,"IS1","NT420","BMI - THE HIGHFIELD HOSPITAL",null,null,"NT420","BMI - THE HIGHFIELD HOSPITAL"]
[null,null,null,null,null,null,null,null,null,null,null,null,null,null,null,null,null,"IS1","NT421","BMI - THE KINGS OAK HOSPITAL",null,null,"NT421","BMI - THE KINGS OAK HOSPITAL"]
[null,null,null,null,null,null,null,null,null,null,null,null,null,null,null,null,null,"IS1","NT422","BMI - THE LONDON INDEPENDENT HOSPITAL",null,null,"NT422","BMI - THE LONDON INDEPENDENT HOSPITAL"]
[null,null,null,null,null,null,null,null,null,null,null,null,null,null,null,null,null,"IS1","NT423","BMI - THE MANOR HOSPITAL",null,null,"NT423","BMI - THE MANOR HOSPITAL"]
[null,null,null,null,null,null,null,null,null,null,null,null,null,null,null,null,null,"IS1","NT424","BMI - THE MERIDEN HOSPITAL",null,null,"NT424","BMI - THE MERIDEN HOSPITAL"]
[null,null,null,null,null,null,null,null,null,null,null,null,null,null,null,null,null,"IS1","NT427","BMI - THE PARK HOSPITAL",null,null,"NT427","BMI - THE PARK HOSPITAL"]
[null,null,null,null,null,null,null,null,null,null,null,null,null,null,null,null,null,"IS1","NT428","BMI - THE PRINCESS MARGARET HOSPITAL",null,null,"NT428","BMI - THE PRINCESS MARGARET HOSPITAL"]
[null,null,null,null,null,null,null,null,null,null,null,null,null,null,null,null,null,"IS1","NT429","BMI - THE PRIORY HOSPITAL",null,null,"NT429","BMI - THE PRIORY HOSPITAL"]
[null,null,null,null,null,null,null,null,null,null,null,null,null,null,null,null,null,"IS1","NT430","BMI - THE RIDGEWAY HOSPITAL",null,null,"NT430","BMI - THE RIDGEWAY HOSPITAL"]
[null,null,null,null,null,null,null,null,null,null,null,null,null,null,null,null,null,"IS1","NT431","BMI - THE RUNNYMEDE HOSPITAL",null,null,"NT431","BMI - THE RUNNYMEDE HOSPITAL"]
[null,null,null,null,null,null,null,null,null,null,null,null,null,null,null,null,null,"IS1","NT434","BMI - THE SAXON CLINIC",null,null,"NT434","BMI - THE SAXON CLINIC"]
[null,null,null,null,null,null,null,null,null,null,null,null,null,null,null,null,null,"IS1","NT435","BMI - THE SHELBURNE HOSPITAL",null,null,"NT435","BMI - THE SHELBURNE HOSPITAL"]
[null,null,null,null,null,null,null,null,null,null,null,null,null,null,null,null,null,"IS1","NT437","BMI - THE SLOANE HOSPITAL",null,null,"NT437","BMI - THE SLOANE HOSPITAL"]
[null,null,null,null,null,null,null,null,null,null,null,null,null,null,null,null,null,"IS1","NT443","BMI - THE WINTERBOURNE HOSPITAL",null,null,"NT443","BMI - THE WINTERBOURNE HOSPITAL"]
[null,null,null,null,null,null,null,null,null,null,null,null,null,null,null,null,null,"IS1","NT440","BMI - THORNBURY HOSPITAL",null,null,"NT440","BMI - THORNBURY HOSPITAL"]
[null,null,null,null,null,null,null,null,null,null,null,null,null,null,null,null,null,"IS1","NT441","BMI - THREE SHIRES HOSPITAL",null,null,"NT441","BMI - THREE SHIRES HOSPITAL"]
[null,null,null,null,null,null,null,null,null,null,null,null,null,null,null,null,null,"IS1","NT455","BMI MOUNT ALVERNIA HOSPITAL",null,null,"NT455","BMI MOUNT ALVERNIA HOSPITAL"]
[null,null,null,null,null,null,null,null,null,null,null,null,null,null,null,null,null,"IS1","NT490","BMI SOUTHEND PRIVATE HOSPITAL",null,null,"NT490","BMI SOUTHEND PRIVATE HOSPITAL"]
[null,null,null,null,null,null,null,null,null,null,null,null,null,null,null,null,null,"IS1","NT446","BMI ST EDMUNDS HOSPITAL",null,null,"NT446","BMI ST EDMUNDS HOSPITAL"]
[null,null,null,null,null,null,null,null,null,null,null,null,null,null,null,null,null,"IS1","NT451","BMI THE CAVELL HOSPITAL",null,null,"NT451","BMI THE CAVELL HOSPITAL"]
[null,null,null,null,null,null,null,null,null,null,null,null,null,null,null,null,null,"IS1","NT447","BMI THE DUCHY HOSPITAL",null,null,"NT447","BMI THE DUCHY HOSPITAL"]
[null,null,null,null,null,null,null,null,null,null,null,null,null,null,null,null,null,"IS1","NT445","BMI THE EDGBASTON HOSPITAL",null,null,"NT445","BMI THE EDGBASTON HOSPITAL"]
[null,null,null,null,null,null,null,null,null,null,null,null,null,null,null,null,null,"IS1","NT448","BMI THE HUDDERSFIELD HOSPITAL",null,null,"NT448","BMI THE HUDDERSFIELD HOSPITAL"]
[null,null,null,null,null,null,null,null,null,null,null,null,null,null,null,null,null,"IS1","NT449","BMI THE LANCASTER HOSPITAL",null,null,"NT449","BMI THE LANCASTER HOSPITAL"]
[null,null,null,null,null,null,null,null,null,null,null,null,null,null,null,null,null,"IS1","NT450","BMI THE LINCOLN HOSPITAL",null,null,"NT450","BMI THE LINCOLN HOSPITAL"]
[null,null,null,null,null,null,null,null,null,null,null,null,null,null,null,null,null,"IS1","NT457","BMI WOODLANDS HOSPITAL",null,null,"NT457","BMI WOODLANDS HOSPITAL"]
[null,null,null,null,null,null,null,null,null,null,null,null,null,null,null,null,null,"IS1","NNE","DORKING HEALTHCARE LIMITED (DHC)",null,null,"NNE","DORKING HEALTHCARE LIMITED (DHC)"]
[null,null,null,null,null,null,null,null,null,null,null,null,null,null,null,null,null,"IS1","NVG01","FAIRFIELD HOSPITAL",null,null,"NVG01","FAIRFIELD HOSPITAL"]
[null,null,null,null,null,null,null,null,null,null,null,null,null,null,null,null,null,"IS1","NXM","HORDER HEALTHCARE",null,null,"NXM","HORDER HEALTHCARE"]
[null,null,null,null,null,null,null,null,null,null,null,null,null,null,null,null,null,"IS1","NV1","INHEALTH LIMITED",null,null,"NV1","INHEALTH LIMITED"]
[null,null,null,null,null,null,null,null,null,null,null,null,null,null,null,null,null,"IS1","NCR","ISIGHT",null,null,"NCR","ISIGHT"]
[null,null,null,null,null,null,null,null,null,null,null,null,null,null,null,null,null,"IS1","ADP","KIMS HOSPITAL",null,null,"ADP","KIMS HOSPITAL"]
[null,null,null,null,null,null,null,null,null,null,null,null,null,null,null,null,null,"IS1","ACG20","NEWMEDICA - BRISTOL - LITFIELD HOUSE",null,null,"ACG20","NEWMEDICA - BRISTOL - LITFIELD HOUSE"]
[null,null,null,null,null,null,null,null,null,null,null,null,null,null,null,null,null,"IS1","Q1S8W","NEWMEDICA - BURY ST EDMUNDS",null,null,"Q1S8W","NEWMEDICA - BURY ST EDMUNDS"]
[null,null,null,null,null,null,null,null,null,null,null,null,null,null,null,null,null,"IS1","ACG36","NEWMEDICA - EXETER - GLEN HOUSE",null,null,"ACG36","NEWMEDICA - EXETER - GLEN HOUSE"]
[null,null,null,null,null,null,null,null,null,null,null,null,null,null,null,null,null,"IS1","ACG41","NEWMEDICA - FROME",null,null,"ACG41","NEWMEDICA - FROME"]
[null,null,null,null,null,null,null,null,null,null,null,null,null,null,null,null,null,"IS1","ACG13","NEWMEDICA - GLOUCESTER (ASPEN MEDICAL CENTRE)",null,null,"ACG13","NEWMEDICA - GLOUCESTER (ASPEN MEDICAL CENTRE)"]
[null,null,null,null,null,null,null,null,null,null,null,null,null,null,null,null,null,"IS1","L0D9W","NEWMEDICA - GLOUCESTER (BRIGHOUSE COURT)",null,null,"L0D9W","NEWMEDICA - GLOUCESTER (BRIGHOUSE COURT)"]
[null,null,null,null,null,null,null,null,null,null,null,null,null,null,null,null,null,"IS1","ACG37","NEWMEDICA - IPSWICH",null,null,"ACG37","NEWMEDICA - IPSWICH"]
[null,null,null,null,null,null,null,null,null,null,null,null,null,null,null,null,null,"IS1","ACG38","NEWMEDICA - LANGFORD",null,null,"ACG38","NEWMEDICA - LANGFORD"]
[null,null,null,null,null,null,null,null,null,null,null,null,null,null,null,null,null,"IS1","P5Y6K","NEWMEDICA - SHREWSBURY",null,null,"P5Y6K","NEWMEDICA - SHREWSBURY"]
[null,null,null,null,null,null,null,null,null,null,null,null,null,null,null,null,null,"IS1","ACG39","NEWMEDICA - SWINDON",null,null,"ACG39","NEWMEDICA - SWINDON"]
[null,null,null,null,null,null,null,null,null,null,null,null,null,null,null,null,null,"IS1","ACG24","NEWMEDICA - TEESSIDE - NORTH ORMESBY",null,null,"ACG24","NEWMEDICA - TEESSIDE - NORTH ORMESBY"]
[null,null,null,null,null,null,null,null,null,null,null,null,null,null,null,null,null,"IS1","ACG40","NEWMEDICA - WAKEFIELD",null,null,"ACG40","NEWMEDICA - WAKEFIELD"]
[null,null,null,null,null,null,null,null,null,null,null,null,null,null,null,null,null,"IS1","ACG30","NEWMEDICA - WORKSOP - DUKERIES",null,null,"ACG30","NEWMEDICA - WORKSOP - DUKERIES"]
[null,null,null,null,null,null,null,null,null,null,null,null,null,null,null,null,null,"IS1","ACG19","NEWMEDICA COMMUNITY OPHTHALMOLOGY - LEEDS",null,null,"ACG19","NEWMEDICA COMMUNITY OPHTHALMOLOGY - LEEDS"]
[null,null,null,null,null,null,null,null,null,null,null,null,null,null,null,null,null,"IS1","ACG07","NEWMEDICA COMMUNITY OPHTHALMOLOGY - LEICESTERSHIRE - LEICESTER (STONEYGATE EYE HOSPITAL)",null,null,"ACG07","NEWMEDICA COMMUNITY OPHTHALMOLOGY - LEICESTERSHIRE - LEICESTER (STONEYGATE EYE HOSPITAL)"]
[null,null,null,null,null,null,null,null,null,null,null,null,null,null,null,null,null,"IS1","ACG12","NEWMEDICA COMMUNITY OPHTHALMOLOGY - NORTH EAST LINCOLNSHIRE - GRIMSBY",null,null,"ACG12","NEWMEDICA COMMUNITY OPHTHALMOLOGY - NORTH EAST LINCOLNSHIRE - GRIMSBY"]
[null,null,null,null,null,null,null,null,null,null,null,null,null,null,null,null,null,"IS1","ACG08","NEWMEDICA OPHTHALMOLOGY - NUNEATON - CAMP HILL - GP LED HEALTH CENTRE",null,null,"ACG08","NEWMEDICA OPHTHALMOLOGY - NUNEATON - CAMP HILL - GP LED HEALTH CENTRE"]
[null,null,null,null,null,null,null,null,null,null,null,null,null,null,null,null,null,"IS1","Y05019","OLDHAM TOTAL SKIN SERVICE",null,null,"Y05019","OLDHAM TOTAL SKIN SERVICE"]
[null,null,null,null,null,null,null,null,null,null,null,null,null,null,null,null,null,"IS1","NMN","PENINSULA HEALTH LLP",null,null,"NMN","PENINSULA HEALTH LLP"]
[null,null,null,null,null,null,null,null,null,null,null,null,null,null,null,null,null,"IS1","NEQ","PHOENIX HEALTH SOLUTIONS LIMITED HQ",null,null,"NEQ","PHOENIX HEALTH SOLUTIONS LIMITED HQ"]
[null,null,null,null,null,null,null,null,null,null,null,null,null,null,null,null,null,"IS1","NEY","PIONEER HEALTHCARE LIMITED",null,null,"NEY","PIONEER HEALTHCARE LIMITED"]
[null,null,null,null,null,null,null,null,null,null,null,null,null,null,null,null,null,"IS1","NTP13","PRACTICE PLUS GROUP HOSPITAL - BARLBOROUGH",null,null,"NTP13","PRACTICE PLUS GROUP HOSPITAL - BARLBOROUGH"]
[null,null,null,null,null,null,null,null,null,null,null,null,null,null,null,null,null,"IS1","NTPH2","PRACTICE PLUS GROUP HOSPITAL - EMERSONS GREEN",null,null,"NTPH2","PRACTICE PLUS GROUP HOSPITAL - EMERSONS GREEN"]
[null,null,null,null,null,null,null,null,null,null,null,null,null,null,null,null,null,"IS1","NTP15","PRACTICE PLUS GROUP HOSPITAL - ILFORD",null,null,"NTP15","PRACTICE PLUS GROUP HOSPITAL - ILFORD"]
[null,null,null,null,null,null,null,null,null,null,null,null,null,null,null,null,null,"IS1","NTPH5","PRACTICE PLUS GROUP HOSPITAL - PLYMOUTH",null,null,"NTPH5","PRACTICE PLUS GROUP HOSPITAL - PLYMOUTH"]
[null,null,null,null,null,null,null,null,null,null,null,null,null,null,null,null,null,"IS1","NTPH1","PRACTICE PLUS GROUP HOSPITAL - SHEPTON MALLET",null,null,"NTPH1","PRACTICE PLUS GROUP HOSPITAL - SHEPTON MALLET"]
[null,null,null,null,null,null,null,null,null,null,null,null,null,null,null,null,null,"IS1","NTP11","PRACTICE PLUS GROUP HOSPITAL - SOUTHAMPTON",null,null,"NTP11","PRACTICE PLUS GROUP HOSPITAL - SOUTHAMPTON"]
[null,null,null,null,null,null,null,null,null,null,null,null,null,null,null,null,null,"IS1","NTPAE","PRACTICE PLUS GROUP OPHTHALMOLOGY - NORTH WEST",null,null,"NTPAE","PRACTICE PLUS GROUP OPHTHALMOLOGY - NORTH WEST"]
[null,null,null,null,null,null,null,null,null,null,null,null,null,null,null,null,null,"IS1","NTPAD","PRACTICE PLUS GROUP SURGICAL CENTRE - ST MARYS PORTSMOUTH",null,null,"NTPAD","PRACTICE PLUS GROUP SURGICAL CENTRE - ST MARYS PORTSMOUTH"]
[null,null,null,null,null,null,null,null,null,null,null,null,null,null,null,null,null,"IS1","NAM","PROBUS SURGERY LIMITED",null,null,"NAM","PROBUS SURGERY LIMITED"]
[null,null,null,null,null,null,null,null,null,null,null,null,null,null,null,null,null,"IS1","NVC","RAMSAY HEALTHCARE UK OPERATIONS LIMITED",null,null,"NVC","RAMSAY HEALTHCARE UK OPERATIONS LIMITED"]
[null,null,null,null,null,null,null,null,null,null,null,null,null,null,null,null,null,"IS1","NT3","SPIRE HEALTHCARE",null,null,"NT3","SPIRE HEALTHCARE"]
[null,null,null,null,null,null,null,null,null,null,null,null,null,null,null,null,null,"IS1","G3Z1Q","SULIS HOSPITAL BATH (FOXCOTE AVENUE)",null,null,"G3Z1Q","SULIS HOSPITAL BATH (FOXCOTE AVENUE)"]
[null,null,null,null,null,null,null,null,null,null,null,null,null,null,null,null,null,"IS1","AAH","TETBURY HOSPITAL TRUST LTD",null,null,"AAH","TETBURY HOSPITAL TRUST LTD"]
[null,null,null,null,null,null,null,null,null,null,null,null,null,null,null,null,null,"IS1","NQT","VIRGIN CARE LTD",null,null,"NQT","VIRGIN CARE LTD"]
[null,null,null,null,null,null,null,null,null,null,null,null,null,null,null,null,null,"IS1","NDA","VIRGIN CARE SERVICES LTD",null,null,"NDA","VIRGIN CARE SERVICES LTD"]